Workbook

Sheet Summary
C1: Search Criteria | I1: Order by | J1: High 3 Yr Prod | M1: New Feature - Order Selection Presentation by WA or Gas Production | U1: ="Average Daily Volume of Gas Prodn - All Zones - "&$B$20&" - First Five Years" -> Average Daily Volume of Gas Prodn - All Zones - 000 MCF - First Five Years | AL1: =IF($B$4="",FALSE,TRUE) -> FALSE | BB1: Find - Area | BC1: =IF($BB$2="","",VLOOKUP(VLOOKUP($BB$2,LU_Area_Name,3),LU_Area_Name_No,3)) -> 9021 | BD1: =IF($BB$2="","",VLOOKUP(VLOOKUP($BB$2,LU_Area_Name,3),LU_Area_Name_No,2)) -> HERITAGE | BH1: Highest WA | BK1: Well Name = | BL1: =DGET(DB_WELL_NAME,"WELL_NAME",$BB$36:$BB$37) -> TOURMALINE HZ TOWN C-G002-G/094-B-16 | BW1: ° | BX1: ' | BY1: " | CA1: YES | CB1: Well_Name | CC1: Well_No
D2: (2) Select | E2: First 25 Wells | G2: =IF(Search!$D$25>=501,"<== Only First 500 of "&Search!$E$25&" Can be Selected","of "&Search!$E$25&" Matching Below") -> of 181 Matching Below | J2: =IF(Search!$G$27="","",Search!$G$27) ->  | M2: Current to: | N2: =Source!$E$2 -> November 2025 | AL2: =IF(Search!$G$27="",FALSE,TRUE) -> FALSE | BB2: HERITAGE | BH2: Lowest WA | BK2: Well Number = | BL2: =IF(AND(ISNUMBER($AL$4),$AL$4>0,$AL$4<=Well_Names!$K$1),$AL$4,VLOOKUP($D$3,LU_Search_Summary_1,2,0)) -> 49886 | BW2: =DGET(DB_WELL_NAME,"SURF_LAT_CALC",$BB$36:$BB$37) -> 57.396389 | BY2: =IF(ISERROR($BW2),"",CJ2&$BW$1&CK2&$BX$1&CL2&$BY$1) -> 57° 23' 47" | CA2: NO | CB2: =Search!$C1 -> 49886 - TOURMALINE HZ TOWN C-G002-G/094-B-16 | CC2: =Search!$B1 -> 49886 | CE2: ="First "&IF(Search!$D$25=1,"",MIN(25,Search!$D$25))&IF(Search!$D$25=1,"Well"," Wells") -> First 25 Wells | CF2: 2015-2019 | CG2: Horiz or Vert Wells | CJ2: =FLOOR(BW2,1) -> 57 | CK2: =FLOOR((BW2-CJ2)*60,1) -> 23 | CL2: =ROUND((BW2-(CJ2+CK2/60))*3600,2) -> 47
D3: 49886 - TOURMALINE HZ TOWN C-G002-G/094-B-16 | J3: =IF(Search!$G$28="","",Search!$G$28&" ") ->  | BB3: Find - Form'n | BC3: =IF($BB$4="","",VLOOKUP(VLOOKUP($BB$4,LU_Formation_Name,3),LU_Formation_Name_No,3)) -> 5000 | BD3: =IF($BB$4="","",VLOOKUP(VLOOKUP($BB$4,LU_Formation_Name,3),LU_Formation_Name_No,2)) -> MONTNEY | BH3: High 3 Yr Prod | BK3: Operator | BL3: =DGET(DB_WELL_NAME,"OPERATOR",$BB$36:$BB$37) -> Tourmaline Oil Corp. | BW3: =DGET(DB_WELL_NAME,"SURF_LON_CALC",$BB$36:$BB$37) -> -123.681389 | BY3: ="- "&IF(ISERROR($BW3),"",CJ3&$BW$1&CK3&$BX$1&CL3&$BY$1) -> - 123° 40' 53" | CB3: =Search!$C2 -> 34329 - TOURMALINE HZ NIG CREEK WEST A- 073-D/094-H-04 | CC3: =Search!$B2 -> 34329 | CE3: =IF(Search!$D$25<=25,"","Wells 26-"&MIN(50,Search!$D$25)&"") -> Wells 26-50 | CF3: 2010-2014 | CG3: Horiz Wells Only | CJ3: =FLOOR(ABS(BW3),1) -> 123 | CK3: =FLOOR((ABS(BW3)-CJ3)*60,1) -> 40 | CL3: =ROUND((ABS(BW3)-(CJ3+CK3/60))*3600,2) -> 53
A4: (1) Well No. | C4: Or | D4: Search Parameters | M4: Location of Activity | AL4: =IF($AL$1,VALUE($B$4),VALUE(IF(MID($D$3,1,1)=" ",0,IF(MID($D$3,5,1)=" ",MID($D$3,1,4),IF(MID($D$3,6,1)=" ",MID($D$3,1,5)))))) -> 49886 | AN4: =MID($D$3,1,5) -> 49886 | BB4: MONTNEY | BH4: High 5 Yr Prod | BQ4: 000 M3 | BW4: Spud Date | BX4: =DGET(DB_WELL_NAME,"SPUD_MON",$BB$36:$BB$37) -> 202408 | BY4: =IF(ISERROR($BX4),"",DATE(LEFT($BX4,4),RIGHT(LEFT($BX4,6),2),1)) -> 2024-08-01 | CB4: =Search!$C3 -> 34330 - TOURMALINE HZ NIG CREEK WEST A-A073-D/094-H-04 | CC4: =Search!$B3 -> 34330 | CE4: =IF(Search!$D$25<=50,"","Wells 51-"&MIN(75,Search!$D$25)&"") -> Wells 51-75 | CF4: 2007-2009 | CG4: Vert Wells Only
D5: Well Auth. No. from | G5: to | M5: Unique Well ID (UWI) | P5: Area | Q5: Formation | BK5: Average Daily Volume of Production | BR5: Production | BW5: Rig Release Date | BX5: =DGET(DB_WELL_NAME,"RIG_REL_MON",$BB$36:$BB$37) -> 202404 | BY5: =IF(ISERROR($BX5),"",DATE(LEFT($BX5,4),RIGHT(LEFT($BX5,6),2),1)) -> 2024-04-01 | CB5: =Search!$C4 -> 36126 - TOURMALINE HZ AITKEN CREEK NORTH C- 065-D/094-H-04 | CC5: =Search!$B4 -> 36126 | CE5: =IF(Search!$D$25<=75,"","Wells 76-"&MIN(100,Search!$D$25)&"") -> Wells 76-100 | CF5: 2004-2006
A6: Enter text in rose coloured cells only. Other cells may be locked. | D6: Well Name contains | M6: =IF(ISERROR(DGET(DB_ADV_Profile_Gas,"UWI",$BU$7:$BV$8)),"",DGET(DB_ADV_Profile_Gas,"UWI",$BU$7:$BV$8)) -> 207B090A094B1600 | P6: =IF(ISERROR(DGET(DB_ADV_Profile_Gas,"AREA_CODE",$BU$7:$BV$8)),"",VLOOKUP(DGET(DB_ADV_Profile_Gas,"AREA_CODE",$BU$7:$BV$8),LU_AREA_CODE,2,0)) -> NORTHERN MONTNEY | Q6: =IF(ISERROR(DGET(DB_ADV_Profile_Gas,"FORMTN_CODE",$BU$7:$BV$8)),"",VLOOKUP(DGET(DB_ADV_Profile_Gas,"FORMTN_CODE",$BU$7:$BV$8),LU_FORM_CODE,2,0)) -> MONTNEY | BK6: UWI 1 | BL6: UWI 2 | BM6: UWI 3 | BN6: UWI 4 | BO6: UWI 5 | BP6: UWI 6 | BQ6: Total | BW6: First Production | BX6: =DGET(DB_WELL_NAME,"First_Prod_Mon",$BB$36:$BB$37) ->  | BY6: =IF(ISERROR($BX6),"",DATE(LEFT($BX6,4),RIGHT(LEFT($BX6,6),2),1)) ->  | CB6: =Search!$C5 -> 34331 - TOURMALINE HZ NIG CREEK WEST A-B073-D/094-H-04 | CC6: =Search!$B5 -> 34331 | CE6: =IF(Search!$D$25<=100,"","Wells 101-"&MIN(125,Search!$D$25)&"") -> Wells 101-125 | CF6: 2001-2003
D7: Operator | E7: Tour | G7: Horizontal | M7: =IF(ISERROR(DGET(DB_ADV_Profile_Gas,"UWI",$BV$7:$BW$8)),"",DGET(DB_ADV_Profile_Gas,"UWI",$BV$7:$BW$8)) ->  | P7: =IF(ISERROR(DGET(DB_ADV_Profile_Gas,"AREA_CODE",$BV$7:$BW$10)),"",VLOOKUP(DGET(DB_ADV_Profile_Gas,"AREA_CODE",$BV$7:$BW$10),LU_AREA_CODE,2,0)) ->  | Q7: =IF(ISERROR(DGET(DB_ADV_Profile_Gas,"FORMTN_CODE",$BV$7:$BW$10)),"",VLOOKUP(DGET(DB_ADV_Profile_Gas,"FORMTN_CODE",$BV$7:$BW$10),LU_FORM_CODE,2,0)) ->  | BB7: Original Units from BCER Database | BI7: =CONCATENATE(LEFT(BJ7,1),":",RIGHT(BJ7,2)) -> M:01 | BJ7: MADV_001 | BK7: =IF(ISERROR(DGET(DB_ADV_Profile_Gas,$BJ7,$BU$7:$BV$8)),"",$BF$8*DGET(DB_ADV_Profile_Gas,$BJ7,$BU$7:$BV$8)) -> 10.88107434 | BL7: =IF(ISERROR(DGET(DB_ADV_Profile_Gas,$BJ7,$BV$7:$BW$8)),"",$BF$8*DGET(DB_ADV_Profile_Gas,$BJ7,$BV$7:$BW$8)) ->  | BM7: =IF(ISERROR(DGET(DB_ADV_Profile_Gas,$BJ7,$BU$9:$BV$10)),"",$BF$8*DGET(DB_ADV_Profile_Gas,$BJ7,$BU$9:$BV$10)) ->  | BN7: =IF(ISERROR(DGET(DB_ADV_Profile_Gas,$BJ7,$BV$9:$BW$10)),"",$BF$8*DGET(DB_ADV_Profile_Gas,$BJ7,$BV$9:$BW$10)) ->  | BO7: =IF(ISERROR(DGET(DB_ADV_Profile_Gas,$BJ7,$BU$11:$BV$12)),"",$BF$8*DGET(DB_ADV_Profile_Gas,$BJ7,$BU$11:$BV$12)) ->  | BP7: =IF(ISERROR(DGET(DB_ADV_Profile_Gas,$BJ7,$BV$11:$BW$12)),"",$BF$8*DGET(DB_ADV_Profile_Gas,$BJ7,$BV$11:$BW$12)) ->  | BQ7: =IF(ISERROR(SUM(BK7:BP7)),"-",IF(SUM(BK7:BP7)=0,$BU$5,SUM(BK7:BP7))) -> 10.88107434 | BR7: MPRD_001 | BS7: =IF(ISERROR(DGET(DB_PRD_Profile_Gas,$BR7,$BV$7:$BV$8)),$BU$5,$BF$8*DGET(DB_PRD_Profile_Gas,$BR7,$BV$7:$BV$8)) -> 211.0929198 | BU7: UWI_Order | BV7: WA_NUM | BW7: UWI_Order | CB7: =Search!$C6 -> 36127 - TOURMALINE HZ AITKEN CREEK NORTH C-A065-D/094-H-04 | CC7: =Search!$B6 -> 36127 | CE7: =IF(Search!$D$25<=125,"","Wells 126-"&MIN(150,Search!$D$25)&"") -> Wells 126-150 | CF7: 1995-2000
D8: Area | G8: Formation | M8: =IF(ISERROR(DGET(DB_ADV_Profile_Gas,"UWI",$BU$9:$BV$10)),"",DGET(DB_ADV_Profile_Gas,"UWI",$BU$9:$BV$10)) ->  | P8: =IF(ISERROR(DGET(DB_ADV_Profile_Gas,"AREA_CODE",$BU$9:$BV$10)),"",VLOOKUP(DGET(DB_ADV_Profile_Gas,"AREA_CODE",$BU$9:$BV$10),LU_AREA_CODE,2,0)) ->  | Q8: =IF(ISERROR(DGET(DB_ADV_Profile_Gas,"FORMTN_CODE",$BU$9:$BV$10)),"",VLOOKUP(DGET(DB_ADV_Profile_Gas,"FORMTN_CODE",$BU$9:$BV$10),LU_FORM_CODE,2,0)) ->  | AN8: =VALUE(AN4)+1 -> 49887 | BB8: Natural Gas | BC8: 000 m3 | BE8: =B20 -> 000 MCF | BF8: =IF($B$20="000 m3",1,IF($B$20="000 MCF",35.301/1000,35.301)) -> 0.035301 | BI8: M:02 | BJ8: MADV_002 | BK8: 10.41308898 | BQ8: =IF(ISERROR(SUM(BK8:BP8)),"-",IF(SUM(BK8:BP8)=0,$BU$5,SUM(BK8:BP8))) -> 10.41308898 | BR8: MPRD_002 | BS8: =IF(ISERROR(DGET(DB_PRD_Profile_Gas,$BR8,$BV$7:$BV$8)),$BU$5,$BF$8*DGET(DB_PRD_Profile_Gas,$BR8,$BV$7:$BV$8)) -> 312.3926694 | BU8: 1 | BV8: =$BL$2 -> 49886 | BW8: 2 | CB8: =Search!$C7 -> 36128 - TOURMALINE HZ AITKEN CREEK NORTH C-B065-D/094-H-04 | CC8: =Search!$B7 -> 36128 | CE8: =IF(Search!$D$25<=150,"","Wells 151-"&MIN(175,Search!$D$25)&"") -> Wells 151-175 | CF8: PRE-1995
D9: Rig Release from (YYYY/MM) | G9: to | M9: =IF(ISERROR(DGET(DB_ADV_Profile_Gas,"UWI",$BV$9:$BW$10)),"",DGET(DB_ADV_Profile_Gas,"UWI",$BV$9:$BW$10)) ->  | P9: =IF(ISERROR(DGET(DB_ADV_Profile_Gas,"AREA_CODE",$BV$9:$BW$10)),"",VLOOKUP(DGET(DB_ADV_Profile_Gas,"AREA_CODE",$BV$9:$BW$10),LU_AREA_CODE,2,0)) ->  | Q9: =IF(ISERROR(DGET(DB_ADV_Profile_Gas,"FORMTN_CODE",$BV$9:$BW$10)),"",VLOOKUP(DGET(DB_ADV_Profile_Gas,"FORMTN_CODE",$BV$9:$BW$10),LU_FORM_CODE,2,0)) ->  | BB9: Oil | BC9: m3 | BE9: =IF(RIGHT(BE8,3)="MCF","bbl","m3") -> bbl | BF9: =IF(BE9="bbl",6.29,1) -> 6.29 | BI9: M:03 | BJ9: MADV_003 | BK9: 9.26333541 | BQ9: 9.26333541 | BR9: MPRD_003 | BS9: 277.9000623 | BU9: UWI_Order | BV9: WA_NUM | BW9: UWI_Order | CB9: =Search!$C8 -> 49882 - TOURMALINE HZ TOWN C-C002-G/094-B-16 | CC9: =Search!$B8 -> 49882 | CE9: =IF(Search!$D$25<=175,"","Wells 176-"&MIN(200,Search!$D$25)&"") -> Wells 176-181 | CF9: NO PRODUCTION
D10: Spudded from (YYYY/MM) | E10: 2024 | F10: 1 | G10: to | H10: 2025 | I10: 11 | M10: =IF(ISERROR(DGET(DB_ADV_Profile_Gas,"UWI",$BU$11:$BV$12)),"",DGET(DB_ADV_Profile_Gas,"UWI",$BU$11:$BV$12)) ->  | P10: =IF(ISERROR(DGET(DB_ADV_Profile_Gas,"AREA_CODE",$BU$11:$BV$12)),"",VLOOKUP(DGET(DB_ADV_Profile_Gas,"AREA_CODE",$BU$11:$BV$12),LU_AREA_CODE,2,0)) ->  | Q10: =IF(ISERROR(DGET(DB_ADV_Profile_Gas,"FORMTN_CODE",$BU$11:$BV$12)),"",VLOOKUP(DGET(DB_ADV_Profile_Gas,"FORMTN_CODE",$BU$11:$BV$12),LU_FORM_CODE,2,0)) ->  | BB10: Condensate | BC10: m3 | BI10: =CONCATENATE(LEFT(BJ10,1),":",RIGHT(BJ10,2)) -> M:04 | BJ10: MADV_004 | BK10: 8.24772564 | BQ10: 8.24772564 | BR10: MPRD_004 | BS10: 247.4317692 | BU10: 3 | BV10: =$BL$2 -> 49886 | BW10: 4 | CB10: =Search!$C9 -> 36129 - TOURMALINE HZ AITKEN CREEK NORTH C-C065-D/094-H-04 | CC10: =Search!$B9 -> 36129 | CE10: =IF(Search!$D$25<=200,"","Wells 201-"&MIN(225,Search!$D$25)&"") -> 
D11: First Production from (YYYY/MM) | G11: to | M11: =IF(ISERROR(DGET(DB_ADV_Profile_Gas,"UWI",$BV$11:$BW$12)),"",DGET(DB_ADV_Profile_Gas,"UWI",$BV$11:$BW$12)) ->  | P11: =IF(ISERROR(DGET(DB_ADV_Profile_Gas,"AREA_CODE",$BV$11:$BW$12)),"",VLOOKUP(DGET(DB_ADV_Profile_Gas,"AREA_CODE",$BV$11:$BW$12),LU_AREA_CODE,2,0)) ->  | Q11: =IF(ISERROR(DGET(DB_ADV_Profile_Gas,"FORMTN_CODE",$BV$11:$BW$12)),"",VLOOKUP(DGET(DB_ADV_Profile_Gas,"FORMTN_CODE",$BV$11:$BW$12),LU_FORM_CODE,2,0)) ->  | BB11: MCF | BI11: =CONCATENATE(LEFT(BJ11,1),":",RIGHT(BJ11,2)) -> M:05 | BJ11: MADV_005 | BK11: 8.673208593 | BQ11: 8.673208593 | BR11: MPRD_005 | BS11: 260.1966108 | BU11: UWI_Order | BV11: WA_NUM | BW11: UWI_Order | CB11: =Search!$C10 -> 40535 - TOURMALINE HZ TOWN A-N008-A/094-B-16 | CC11: =Search!$B10 -> 40535 | CE11: =IF(Search!$D$25<=225,"","Wells 226-"&MIN(250,Search!$D$25)&"") -> 
D12: Geo Location (Decimal degree Lat, Lon) | E12: 57 | F12: -124 | G12: SW to | H12: 60 | I12: -116 | J12: NE corner | M12: Please read the comments under the tab "A_Word" | BB12: 000 MCF | BI12: =CONCATENATE(LEFT(BJ12,1),":",RIGHT(BJ12,2)) -> M:06 | BJ12: MADV_006 | BK12: 9.251897886 | BQ12: 9.251897886 | BR12: MPRD_006 | BS12: 278.4825288 | BU12: 5 | BV12: =$BL$2 -> 49886 | BW12: 6 | CB12: =Search!$C11 -> 40533 - TOURMALINE HZ TOWN A-L008-A/094-B-16 | CC12: =Search!$B11 -> 40533 | CE12: =IF(Search!$D$25<=250,"","Wells 251-"&MIN(275,Search!$D$25)&"") -> 
BB13: 000 m3 | BI13: =CONCATENATE(LEFT(BJ13,1),":",RIGHT(BJ13,2)) -> M:07 | BJ13: MADV_007 | BK13: 8.270177076 | BQ13: 8.270177076 | BR13: MPRD_007 | BS13: 230.7379263 | CB13: =Search!$C12 -> 40532 - TOURMALINE HZ TOWN A-K008-A/094-B-16 | CC13: =Search!$B12 -> 40532 | CE13: =IF(Search!$D$25<=275,"","Wells 276-"&MIN(300,Search!$D$25)&"") -> 
BI14: =CONCATENATE(LEFT(BJ14,1),":",RIGHT(BJ14,2)) -> M:08 | BJ14: MADV_008 | BK14: 7.877206344 | BQ14: 7.877206344 | BR14: MPRD_008 | BS14: 240.2550759 | CB14: =Search!$C13 -> 50903 - TOURMALINE HZ NIG CREEK C-B100-C/094-H-04 | CC14: =Search!$B13 -> 50903 | CE14: =IF(Search!$D$25<=300,"","Wells 301-"&MIN(325,Search!$D$25)&"") -> 
A15: Well Name | B15: =IF(ISERROR($BL$1),"",$BL$1) -> TOURMALINE HZ TOWN C-G002-G/094-B-16 | H15: Num Fracs Reported | I15: =SUM(F43:J43) -> 0 | K15: Well Classification | L15: =IF(ISERROR(DGET(DB_DRILLING_EVENTS,"CLASS",$BB$36:$BB$37)),"",DGET(DB_DRILLING_EVENTS,"CLASS",$BB$36:$BB$37)) -> DV | U15: ="Monthly Gas Production - All Zones - "&$B$20&" - First Five Years" -> Monthly Gas Production - All Zones - 000 MCF - First Five Years | AN15: =MID($D$3,1,1) -> 4 | BC15: WA_NUM | BD15: POSITION | BI15: =CONCATENATE(LEFT(BJ15,1),":",RIGHT(BJ15,2)) -> M:09 | BJ15: MADV_009 | BK15: 5.879840463 | BQ15: 5.879840463 | BR15: MPRD_009 | BS15: 126.4164111 | CB15: =Search!$C14 -> 49891 - TOURMALINE HZ TOWN C-L002-G/094-B-16 | CC15: =Search!$B14 -> 49891 | CE15: =IF(Search!$D$25<=325,"","Wells 326-"&MIN(350,Search!$D$25)&"") -> 
A16: Well No. | B16: =IF(ISERROR($BL$2),"",$BL$2) -> 49886 | E16: Horizontal? | F16: =IF(OR(ISERROR($BL$1),ISERROR($BL$2)),"",IF(DGET(DB_WELL_NAME,"HORIZ_WELL",$BB$36:$BB$37)="HZ","YES","NO")) -> YES | H16: Dir Survey - Total MD | I16: =IF(ISERROR(DGET(DB_DIR_SURVEY,"TOTAL_M_DEPTH",$BC$15:$BC$16)),"",DMAX(DB_DIR_SURVEY,"TOTAL_M_DEPTH",$BC$15:$BC$16)) -> 4379 | K16: Dir Survey - TVD | L16: =IF(ISERROR(DGET(DB_DIR_SURVEY,"MAX_TV_DEPTH",$BC$15:$BC$16)),"",DMAX(DB_DIR_SURVEY,"MAX_TV_DEPTH",$BC$15:$BC$16)) -> 1778.06 | P16: =IF(ISERROR(DGET(DB_PAY_ZONE,"MEAS_TOP_PAY_DEPTH",$BC$15:$BD$16)),"No Depth",CONCATENATE("Deepest @",DGET(DB_PAY_ZONE,"MEAS_TOP_PAY_DEPTH",$BC$15:$BD$16),"m TOP")) -> Deepest @1967.4m TOP | BC16: =$BL$2 -> 49886 | BD16: 1 | BI16: M:10 | BJ16: MADV_010 | BK16: 5.239480323 | BQ16: 5.239480323 | BR16: MPRD_010 | BS16: 162.4234311 | CB16: =Search!$C15 -> 50904 - TOURMALINE HZ NIG CREEK C-C100-C/094-H-04 | CC16: =Search!$B15 -> 50904 | CE16: =IF(Search!$D$25<=350,"","Wells 351-"&MIN(375,Search!$D$25)&"") -> 
A17: Operator | B17: =IF(ISERROR($BL$3),"",$BL$3) -> Tourmaline Oil Corp. | D17: Rig Release Date | E17: =$BY$5 -> 2024-04-01 | G17: Surf Lat | H17: =$BY$2 -> 57° 23' 47" | N17: Max | O17: Min | P17: =IF(ISERROR(DGET(DB_PAY_ZONE,"PAY_TYPE",$BC$15:$BD$16)),"No Pay Type",CONCATENATE("Pay Type = ",DGET(DB_PAY_ZONE,"PAY_TYPE",$BC$15:$BD$16))) -> No Pay Type | BI17: M:11 | BJ17: MADV_011 | BK17: 4.860276981 | BQ17: 4.860276981 | BR17: MPRD_011 | BS17: 144.8364729 | CB17: =Search!$C16 -> 49884 - TOURMALINE HZ TOWN C-E002-G/094-B-16 | CC17: =Search!$B16 -> 49884 | CE17: =IF(Search!$D$25<=375,"","Wells 376-"&MIN(400,Search!$D$25)&"") -> 
D18: Spud Date | E18: =$BY$4 -> 2024-08-01 | G18: Surf Lon | H18: =$BY$3 -> - 123° 40' 53" | M18: Porosity | N18: =IF(ISERROR(DGET(DB_PAY_ZONE,"POROSITY",$BC$15:$BD$16)),"",DMAX(DB_PAY_ZONE,"POROSITY",$BC$15:$BC$16)) ->  | O18: =IF(ISERROR(DGET(DB_PAY_ZONE,"POROSITY",$BC$15:$BD$16)),"",DMIN(DB_PAY_ZONE,"POROSITY",$BC$15:$BC$16)) ->  | P18: =IF(ISERROR(DGET(DB_PAY_ZONE,"POROSITY",$BC$15:$BD$16)),"",DGET(DB_PAY_ZONE,"POROSITY",$BC$15:$BD$16)) ->  | BB18: =IF(ISERROR(DGET(DB_PRD_Profile_Gas,"FIRST_PROD_PERIOD",$BC$15:$BC$16)),"",DGET(DB_PRD_Profile_Gas,"FIRST_PROD_PERIOD",$BC$15:$BC$16)) -> 202408 | BI18: M:12 | BJ18: MADV_012 | BK18: 4.530565641 | BQ18: 4.530565641 | BR18: MPRD_012 | BS18: 138.1822344 | CB18: =Search!$C17 -> 49880 - TOURMALINE HZ TOWN C-A002-G/094-B-16 | CC18: =Search!$B17 -> 49880 | CE18: =IF(Search!$D$25<=400,"","Wells 401-"&MIN(425,Search!$D$25)&"") -> 
A19: Presentation Units | D19: First Production | E19: =$BY$6 ->  | M19: Saturation | N19: =IF(ISERROR(DGET(DB_PAY_ZONE,"SATURATION",$BC$15:$BD$16)),"",DMAX(DB_PAY_ZONE,"SATURATION",$BC$15:$BC$16)) ->  | O19: =IF(ISERROR(DGET(DB_PAY_ZONE,"SATURATION",$BC$15:$BD$16)),"",DMIN(DB_PAY_ZONE,"SATURATION",$BC$15:$BC$16)) ->  | P19: =IF(ISERROR(DGET(DB_PAY_ZONE,"SATURATION",$BC$15:$BD$16)),"",DGET(DB_PAY_ZONE,"SATURATION",$BC$15:$BD$16)) ->  | BI19: M:13 | BJ19: MADV_013 | BK19: 4.201383816 | BQ19: 4.201383816 | BR19: MPRD_013 | BS19: 130.2430395 | CB19: =Search!$C18 -> 34328 - TOURMALINE HZ NIG CREEK WEST B- 073-D/094-H-04 | CC19: =Search!$B18 -> 34328 | CE19: =IF(Search!$D$25<=425,"","Wells 426-"&MIN(450,Search!$D$25)&"") -> 
B20: 000 MCF | M20: Lithology | N20: =IF(ISERROR(DGET(DB_PAY_ZONE,"LITHOLOGY",$BC$15:$BC$16)),"",DGET(DB_PAY_ZONE,"LITHOLOGY",$BC$15:$BC$16)) ->  | P20: =IF(ISERROR(DGET(DB_PAY_ZONE,"LITHOLOGY",$BC$15:$BD$16)),"",DGET(DB_PAY_ZONE,"LITHOLOGY",$BC$15:$BD$16)) ->  | BI20: M:14 | BJ20: MADV_014 | BK20: 3.920070147 | BQ20: 3.920070147 | BR20: MPRD_014 | BS20: 117.6017514 | CB20: =Search!$C19 -> 50994 - TOURMALINE HZ NIG CREEK D-C019-F/094-H-04 | CC20: =Search!$B19 -> 50994 | CE20: =IF(Search!$D$25<=450,"","Wells 451-"&MIN(475,Search!$D$25)&"") -> 
A21: Gas Production | D21: 1 | E21: 2 | F21: 3 | G21: 4 | H21: 5 | I21: 6 | J21: 7 | K21: 8 | L21: 9 | M21: 10 | N21: 11 | O21: 12 | P21: 13 | Q21: 14 | R21: 15 | BI21: M:15 | BJ21: MADV_015 | BK21: 3.752602203 | BQ21: 3.752602203 | BR21: MPRD_015 | BS21: 116.3309154 | CB21: =Search!$C20 -> 50993 - TOURMALINE HZ NIG CREEK D-B019-F/094-H-04 | CC21: =Search!$B20 -> 50993 | CE21: =IF(Search!$D$25<=475,"","Wells 476-"&MIN(500,Search!$D$25)&"") -> 
C22: ="Monthly - "&$B$20 -> Monthly - 000 MCF | D22: =IF(ISERROR($BS$7),"",1*$BS$7) -> 211.0929198 | E22: =IF(ISERROR($BS$8),"",1*$BS$8) -> 312.3926694 | F22: =IF(ISERROR($BS$9),"",1*$BS$9) -> 277.9000623 | G22: =IF(ISERROR($BS$10),"",1*$BS$10) -> 247.4317692 | H22: =IF(ISERROR($BS$11),"",1*$BS$11) -> 260.1966108 | I22: =IF(ISERROR($BS$12),"",1*$BS$12) -> 278.4825288 | J22: =IF(ISERROR($BS$13),"",1*$BS$13) -> 230.7379263 | K22: =IF(ISERROR($BS$14),"",1*$BS$14) -> 240.2550759 | L22: =IF(ISERROR($BS$15),"",1*$BS$15) -> 126.4164111 | M22: =IF(ISERROR($BS$16),"",1*$BS$16) -> 162.4234311 | N22: =IF(ISERROR($BS$17),"",1*$BS$17) -> 144.8364729 | O22: =IF(ISERROR($BS$18),"",1*$BS$18) -> 138.1822344 | P22: =IF(ISERROR($BS$19),"",1*$BS$19) -> 130.2430395 | Q22: =IF(ISERROR($BS$20),"",1*$BS$20) -> 117.6017514 | R22: =IF(ISERROR($BS$21),"",1*$BS$21) -> 116.3309154 | BI22: M:16 | BJ22: MADV_016 | BK22: 3.59893695 | BQ22: 3.59893695 | BR22: MPRD_016 | BS22: 107.9681085 | CB22: =Search!$C21 -> 50901 - TOURMALINE HZ NIG CREEK C- 100-C/094-H-04 | CC22: =Search!$B21 -> 50901
C23: ="Annual - "&$B$20&" - Yr of Production" -> Annual - 000 MCF - Yr of Production | D23: =IF(ISERROR($BS$67),"",1*$BS$67) -> 2630.348112 | E23: =IF(ISERROR($BS$68),"",1*$BS$68) -> 472.1438148 | F23: =IF(ISERROR($BS$69),"",1*$BS$69) ->  | G23: =IF(ISERROR($BS$70),"",1*$BS$70) ->  | H23: =IF(ISERROR($BS$71),"",1*$BS$71) ->  | I23: =IF(ISERROR($BS$72),"",1*$BS$72) ->  | J23: =IF(ISERROR($BS$73),"",1*$BS$73) ->  | K23: =IF(ISERROR($BS$74),"",1*$BS$74) ->  | L23: =IF(ISERROR($BS$75),"",1*$BS$75) ->  | M23: =IF(ISERROR($BS$76),"",1*$BS$76) ->  | N23: =IF(ISERROR($BS$77),"",1*$BS$77) ->  | O23: =IF(ISERROR($BS$78),"",1*$BS$78) ->  | P23: =IF(ISERROR($BS$79),"",1*$BS$79) ->  | Q23: =IF(ISERROR($BS$80),"",1*$BS$80) ->  | R23: =IF(ISERROR($BS$81),"",1*$BS$81) ->  | BI23: M:17 | BJ23: MADV_017 | BK23: 0 | BR23: MPRD_017 | CB23: =Search!$C22 -> 50995 - TOURMALINE HZ NIG CREEK D-D019-F/094-H-04 | CC23: =Search!$B22 -> 50995
C24: First Production Period | D24: =$BY$6 ->  | BB24: =IF(ISERROR(DGET(DB_GAS_ANAL,"Sample_date",$BC$24:$BD$25)),"",DGET(DB_GAS_ANAL,"Sample_date",$BC$24:$BD$25)) -> 20240815 | BC24: WA_NUM | BD24: Sample_Order | BE24: WA_NUM | BF24: Sample_Order | BG24: WA_NUM | BH24: Sample_Order | BI24: M:18 | BJ24: MADV_018 | BK24: 0 | BR24: MPRD_018 | CB24: =Search!$C23 -> 50992 - TOURMALINE HZ NIG CREEK D-A019-F/094-H-04 | CC24: =Search!$B23 -> 50992
D25: 2013/14 | E25: 2014/15 | F25: 2015/16 | G25: 2016/17 | H25: 2017/18 | I25: 2018/19 | J25: 2019/20 | K25: 2020/21 | L25: 2021/22 | M25: 2022/23 | N25: 2023/24 | O25: 2024/25 | P25: 2025/26 | Q25: 2026/27 | R25: 2027/28 | BB25: =IF(ISERROR(DGET(DB_GAS_ANAL,"Sample_date",$BE$24:$BF$25)),"",DGET(DB_GAS_ANAL,"Sample_date",$BE$24:$BF$25)) ->  | BC25: =$BL$2 -> 49886 | BD25: 1 | BE25: =$BL$2 -> 49886 | BF25: 2 | BG25: =$BL$2 -> 49886 | BH25: 3 | BI25: M:19 | BJ25: MADV_019 | BK25: 0 | BR25: MPRD_019 | CB25: =Search!$C24 -> 42693 - TOURMALINE HZ KOBES D-AD005-H/094-B-09 | CC25: =Search!$B24 -> 42693
C26: ="Gas Annual Production - "&$B$20 -> Gas Annual Production - 000 MCF | D26: =IF(ISERROR(DGET(DB_PRD_Profile_Gas,"PRD_FYE20"&RIGHT(D$25,2),$BV$7:$BV$8)),"",$BF$8*DGET(DB_PRD_Profile_Gas,"PRD_FYE20"&RIGHT(D$25,2),$BV$7:$BV$8)) ->  | O26: 2058.489562 | P26: 1044.002364 | BB26: =IF(ISERROR(DGET(DB_GAS_ANAL,"Sample_date",$BG$24:$BH$25)),"",DGET(DB_GAS_ANAL,"Sample_date",$BG$24:$BH$25)) ->  | BC26: WA_NUM | BD26: Sample_Order | BE26: WA_NUM | BF26: Sample_Order | BG26: WA_NUM | BH26: Sample_Order | BI26: M:20 | BJ26: MADV_020 | BK26: 0 | BR26: MPRD_020 | CB26: =Search!$C25 -> 39493 - TOURMALINE ET AL HZ NIG CREEK A-H094-J/094-A-13 | CC26: =Search!$B25 -> 39493
C27: ="Gas Daily Production - Annual - "&$B$20&"/d" -> Gas Daily Production - Annual - 000 MCF/d | D27: =IF(ISERROR($BQ$88),"",$BQ$88) ->  | E27: =IF(ISERROR($BQ$89),"",$BQ$89) ->  | F27: =IF(ISERROR($BQ$90),"",$BQ$90) ->  | G27: =IF(ISERROR($BQ$91),"",$BQ$91) ->  | H27: =IF(ISERROR($BQ$92),"",$BQ$92) ->  | I27: =IF(ISERROR($BQ$93),"",$BQ$93) ->  | J27: =IF(ISERROR($BQ$94),"",$BQ$94) ->  | K27: =IF(ISERROR($BQ$95),"",$BQ$95) ->  | L27: =IF(ISERROR($BQ$96),"",$BQ$96) ->  | M27: =IF(ISERROR($BQ$97),"",$BQ$97) ->  | N27: =IF(ISERROR($BQ$98),"",$BQ$98) ->  | O27: =IF(ISERROR($BQ$99),"",$BQ$99) -> 9.032431569 | P27: =IF(ISERROR($BQ$100),"",$BQ$100) -> 4.446337455 | Q27: =IF(ISERROR($BQ$101),"",$BQ$101) ->  | R27: =IF(ISERROR($BQ$102),"",$BQ$102) ->  | BC27: =$BL$2 -> 49886 | BD27: 4 | BE27: =$BL$2 -> 49886 | BF27: 5 | BG27: =$BL$2 -> 49886 | BH27: 6 | BI27: M:21 | BJ27: MADV_021 | BK27: 0 | BR27: MPRD_021
C28: ="Condensate Annual Production - "&$BE$9 -> Condensate Annual Production - bbl | D28: =IF(ISERROR(DGET(DB_PRD_Profile_Gas,"CND_FYE20"&RIGHT(D$25,2),$BV$7:$BV$8)),"",$BF$9*DGET(DB_PRD_Profile_Gas,"CND_FYE20"&RIGHT(D$25,2),$BV$7:$BV$8)) ->  | O28: 207.57 | P28: 0 | BI28: M:22 | BJ28: MADV_022 | BK28: 0 | BR28: MPRD_022
C29: ="Oil Annual Production - "&$BE$9 -> Oil Annual Production - bbl | D29: =IF(ISERROR(DGET(DB_PRD_Profile_Gas,"OIL_FYE20"&RIGHT(D$25,2),$BV$7:$BV$8)),"",$BF$9*DGET(DB_PRD_Profile_Gas,"OIL_FYE20"&RIGHT(D$25,2),$BV$7:$BV$8)) ->  | O29: 0 | P29: 0 | BI29: M:23 | BJ29: MADV_023 | BK29: 0 | BR29: MPRD_023
D30: 1 | E30: 2 | F30: 3 | G30: 4 | H30: 5 | I30: 6 | J30: 7 | K30: 8 | L30: 9 | M30: 10 | N30: 11 | O30: 12 | P30: 13 | Q30: 14 | R30: 15 | BI30: M:24 | BJ30: MADV_024 | BK30: 0 | BQ30: =IF(ISERROR(SUM(BK30:BP30)),"-",IF(SUM(BK30:BP30)=0,$BU$5,SUM(BK30:BP30))) ->  | BR30: MPRD_024
C31: ="Gas Daily Production - First Months - "&$B$20&"/d" -> Gas Daily Production - First Months - 000 MCF/d | D31: =IF(ISERROR($BQ$7),"",1*$BQ$7) -> 10.88107434 | E31: =IF(ISERROR($BQ$8),"",1*$BQ$8) -> 10.41308898 | F31: =IF(ISERROR($BQ$9),"",1*$BQ$9) -> 9.26333541 | G31: =IF(ISERROR($BQ$10),"",1*$BQ$10) -> 8.24772564 | H31: =IF(ISERROR($BQ$11),"",1*$BQ$11) -> 8.673208593 | I31: =IF(ISERROR($BQ$12),"",1*$BQ$12) -> 9.251897886 | J31: =IF(ISERROR($BQ$13),"",1*$BQ$13) -> 8.270177076 | K31: =IF(ISERROR($BQ$14),"",1*$BQ$14) -> 7.877206344 | L31: =IF(ISERROR($BQ$15),"",1*$BQ$15) -> 5.879840463 | M31: =IF(ISERROR($BQ$16),"",1*$BQ$16) -> 5.239480323 | N31: =IF(ISERROR($BQ$17),"",1*$BQ$17) -> 4.860276981 | O31: =IF(ISERROR($BQ$18),"",1*$BQ$18) -> 4.530565641 | P31: =IF(ISERROR($BQ$19),"",1*$BQ$19) -> 4.201383816 | Q31: =IF(ISERROR($BQ$20),"",1*$BQ$20) -> 3.920070147 | R31: =IF(ISERROR($BQ$21),"",1*$BQ$21) -> 3.752602203 | U31: ="Annual Gas Production - All Zones - "&$B$20 -> Annual Gas Production - All Zones - 000 MCF | BI31: M:25 | BJ31: MADV_025 | BK31: 0 | BQ31: =IF(SUM(BK31:BP31)=0,$BU$5,SUM(BK31:BP31)) ->  | BR31: MPRD_025
C32: ="Gas Daily Production - Annual - "&$B$20&"/d" -> Gas Daily Production - Annual - 000 MCF/d | D32: =IF(ISERROR($BQ$67),"",1*$BQ$67) -> 7.720434603 | E32: =IF(ISERROR($BQ$68),"",1*$BQ$68) -> 3.87004863 | F32: =IF(ISERROR($BQ$69),"",1*$BQ$69) ->  | G32: =IF(ISERROR($BQ$70),"",1*$BQ$70) ->  | H32: =IF(ISERROR($BQ$71),"",1*$BQ$71) ->  | I32: =IF(ISERROR($BQ$72),"",1*$BQ$72) ->  | J32: =IF(ISERROR($BQ$73),"",1*$BQ$73) ->  | K32: =IF(ISERROR($BQ$74),"",1*$BQ$74) ->  | L32: =IF(ISERROR($BQ$75),"",1*$BQ$75) ->  | M32: =IF(ISERROR($BQ$76),"",1*$BQ$76) ->  | N32: =IF(ISERROR($BQ$77),"",1*$BQ$77) ->  | O32: =IF(ISERROR($BQ$78),"",1*$BQ$78) ->  | P32: =IF(ISERROR($BQ$79),"",1*$BQ$79) ->  | Q32: =IF(ISERROR($BQ$80),"",1*$BQ$80) ->  | R32: =IF(ISERROR($BQ$81),"",1*$BQ$81) ->  | BI32: M:26 | BJ32: MADV_026 | BK32: 0 | BR32: MPRD_026
BI33: M:27 | BJ33: MADV_027 | BK33: 0 | BR33: MPRD_027
C34: Days on Production - First Months | D34: =IF(D31="","",D22/D31) -> 19.40000714 | E34: 30 | F34: 30 | G34: 30 | H34: 30.0000407 | I34: 30.1000435 | J34: 27.89999829 | K34: 30.50003585 | L34: 21.49997298 | M34: 30.99991241 | N34: 29.80004503 | O34: 30.4999961 | P34: 31.00003361 | Q34: 29.99990995 | R34: 31.00006585 | BI34: M:28 | BJ34: MADV_028 | BK34: 0 | BR34: MPRD_028
C35: Days on Production - Annual | D35: 340.6994874 | E35: 121.9994527 | BI35: M:29 | BJ35: MADV_029 | BK35: 0 | BR35: MPRD_029
BB36: WA_NUM | BC36: Compltn_Order | BD36: =IF(ISERROR(DGET(DB_Fracs,"Compltn_Date",$BB36:$BC37)),"",DGET(DB_Fracs,"Compltn_Date",$BB36:$BC37)) ->  | BE36: First 5 Fracs | BI36: M:30 | BJ36: MADV_030 | BK36: 0 | BR36: MPRD_030
A37: Gas Analysis | C37: Sample Date | D37: H2 | E37: Helium | F37: CO2 | G37: H2S | H37: N2 | I37: C1 | J37: C2 | K37: C3 | L37: IC4 | M37: NC4 | N37: IC5 | O37: NC5 | P37: C6-C10 | R37: All Samples | BB37: =$BL$2 -> 49886 | BC37: =IF($C$44=$BE$37,6,IF($C$44=$BE$38,11,IF($C$44=$BE$39,16,IF($C$44=$BE$40,21,IF($C$44=$BE$41,26,1))))) -> 1 | BE37: Fracs - 6 to 10 | BI37: M:31 | BJ37: MADV_031 | BK37: 0 | BR37: MPRD_031
C38: =IF($BB24="","",LEFT(BB24,4)&"-"&RIGHT(LEFT(BB24,6),2)&"-"&RIGHT(BB24,2)) -> 2024-08-15 | D38: =IF(ISERROR(DGET(DB_GAS_ANAL,"H2_fractn",$BC$24:$BD$25)),"",DGET(DB_GAS_ANAL,"H2_fractn",$BC$24:$BD$25)) -> 0.0001 | E38: =IF(ISERROR(DGET(DB_GAS_ANAL,"Helium_fractn",$BC$24:$BD$25)),"",DGET(DB_GAS_ANAL,"Helium_fractn",$BC$24:$BD$25)) -> 0 | F38: =IF(ISERROR(DGET(DB_GAS_ANAL,"CO2_fractn",$BC$24:$BD$25)),"",DGET(DB_GAS_ANAL,"CO2_fractn",$BC$24:$BD$25)) -> 0.0014 | G38: =IF(ISERROR(DGET(DB_GAS_ANAL,"H2S_fractn",$BC$24:$BD$25)),"",DGET(DB_GAS_ANAL,"H2S_fractn",$BC$24:$BD$25)) -> 0 | H38: =IF(ISERROR(DGET(DB_GAS_ANAL,"N2_fractn",$BC$24:$BD$25)),"",DGET(DB_GAS_ANAL,"N2_fractn",$BC$24:$BD$25)) -> 0.0014 | I38: =IF(ISERROR(DGET(DB_GAS_ANAL,"C1_fractn",$BC$24:$BD$25)),"",DGET(DB_GAS_ANAL,"C1_fractn",$BC$24:$BD$25)) -> 0.8296 | J38: =IF(ISERROR(DGET(DB_GAS_ANAL,"C2_fractn",$BC$24:$BD$25)),"",DGET(DB_GAS_ANAL,"C2_fractn",$BC$24:$BD$25)) -> 0.0983 | K38: =IF(ISERROR(DGET(DB_GAS_ANAL,"C3_fractn",$BC$24:$BD$25)),"",DGET(DB_GAS_ANAL,"C3_fractn",$BC$24:$BD$25)) -> 0.037 | L38: =IF(ISERROR(DGET(DB_GAS_ANAL,"Ic4_fractn",$BC$24:$BD$25)),"",DGET(DB_GAS_ANAL,"Ic4_fractn",$BC$24:$BD$25)) -> 0.0074 | M38: =IF(ISERROR(DGET(DB_GAS_ANAL,"Nc4_fractn",$BC$24:$BD$25)),"",DGET(DB_GAS_ANAL,"Nc4_fractn",$BC$24:$BD$25)) -> 0.0111 | N38: =IF(ISERROR(DGET(DB_GAS_ANAL,"Ic5_fractn",$BC$24:$BD$25)),"",DGET(DB_GAS_ANAL,"Ic5_fractn",$BC$24:$BD$25)) -> 0.0037 | O38: =IF(ISERROR(DGET(DB_GAS_ANAL,"Nc5_fractn",$BC$24:$BD$25)),"",DGET(DB_GAS_ANAL,"Nc5_fractn",$BC$24:$BD$25)) -> 0.0036 | P38: =IF($BB24="","",IF(ISERROR(DGET(DB_GAS_ANAL,"C6_fractn",$BC$24:$BD$25)),0,DGET(DB_GAS_ANAL,"C6_fractn",$BC$24:$BD$25)) +IF(ISERROR(DGET(DB_GAS_ANAL,"C7_fractn",$BC$24:$BD$25)),0,DGET(DB_GAS_ANAL,"C7_fractn",$BC$24:$BD$25)) +IF(ISERROR(DGET(DB_GAS_ANAL,"C8_fractn",$BC$24:$BD$25)),0,DGET(DB_GAS_ANAL,"C8_fractn",$BC$24:$BD$25)) +IF(ISERROR(DGET(DB_GAS_ANAL,"C9_fractn",$BC$24:$BD$25)),0,DGET(DB_GAS_ANAL,"C9_fractn",$BC$24:$BD$25)) +IF(ISERROR(DGET(DB_GAS_ANAL,"C10_fractn",$BC$24:$BD$25)),0,DGET(DB_GAS_ANAL,"C10_fractn",$BC$24:$BD$25))) -> 0.0064 | R38: CO2 | S38: H2S | BB38: WA_NUM | BC38: Compltn_Order | BD38: =IF(ISERROR(DGET(DB_Fracs,"Compltn_Date",$BB38:$BC39)),"",DGET(DB_Fracs,"Compltn_Date",$BB38:$BC39)) ->  | BE38: Fracs - 11 to 15 | BI38: M:32 | BJ38: MADV_032 | BK38: 0 | BR38: MPRD_032
C39: =IF($BB25="","",LEFT(BB25,4)&"-"&RIGHT(LEFT(BB25,6),2)&"-"&RIGHT(BB25,2)) ->  | D39: =IF(ISERROR(DGET(DB_GAS_ANAL,"H2_fractn",$BE$24:$BF$25)),"",DGET(DB_GAS_ANAL,"H2_fractn",$BE$24:$BF$25)) ->  | E39: =IF(ISERROR(DGET(DB_GAS_ANAL,"Helium_fractn",$BE$24:$BF$25)),"",DGET(DB_GAS_ANAL,"Helium_fractn",$BE$24:$BF$25)) ->  | F39: =IF(ISERROR(DGET(DB_GAS_ANAL,"CO2_fractn",$BE$24:$BF$25)),"",DGET(DB_GAS_ANAL,"CO2_fractn",$BE$24:$BF$25)) ->  | G39: =IF(ISERROR(DGET(DB_GAS_ANAL,"H2S_fractn",$BE$24:$BF$25)),"",DGET(DB_GAS_ANAL,"H2S_fractn",$BE$24:$BF$25)) ->  | H39: =IF(ISERROR(DGET(DB_GAS_ANAL,"N2_fractn",$BE$24:$BF$25)),"",DGET(DB_GAS_ANAL,"N2_fractn",$BE$24:$BF$25)) ->  | I39: =IF(ISERROR(DGET(DB_GAS_ANAL,"C1_fractn",$BE$24:$BF$25)),"",DGET(DB_GAS_ANAL,"C1_fractn",$BE$24:$BF$25)) ->  | J39: =IF(ISERROR(DGET(DB_GAS_ANAL,"C2_fractn",$BE$24:$BF$25)),"",DGET(DB_GAS_ANAL,"C2_fractn",$BE$24:$BF$25)) ->  | K39: =IF(ISERROR(DGET(DB_GAS_ANAL,"C3_fractn",$BE$24:$BF$25)),"",DGET(DB_GAS_ANAL,"C3_fractn",$BE$24:$BF$25)) ->  | L39: =IF(ISERROR(DGET(DB_GAS_ANAL,"Ic4_fractn",$BE$24:$BF$25)),"",DGET(DB_GAS_ANAL,"Ic4_fractn",$BE$24:$BF$25)) ->  | M39: =IF(ISERROR(DGET(DB_GAS_ANAL,"Nc4_fractn",$BE$24:$BF$25)),"",DGET(DB_GAS_ANAL,"Nc4_fractn",$BE$24:$BF$25)) ->  | N39: =IF(ISERROR(DGET(DB_GAS_ANAL,"Ic5_fractn",$BE$24:$BF$25)),"",DGET(DB_GAS_ANAL,"Ic5_fractn",$BE$24:$BF$25)) ->  | O39: =IF(ISERROR(DGET(DB_GAS_ANAL,"Nc5_fractn",$BE$24:$BF$25)),"",DGET(DB_GAS_ANAL,"Nc5_fractn",$BE$24:$BF$25)) ->  | P39: =IF($BB25="","",IF(ISERROR(DGET(DB_GAS_ANAL,"C6_fractn",$BE$24:$BF$25)),0,DGET(DB_GAS_ANAL,"C6_fractn",$BE$24:$BF$25)) +IF(ISERROR(DGET(DB_GAS_ANAL,"C7_fractn",$BE$24:$BF$25)),0,DGET(DB_GAS_ANAL,"C7_fractn",$BE$24:$BF$25)) +IF(ISERROR(DGET(DB_GAS_ANAL,"C8_fractn",$BE$24:$BF$25)),0,DGET(DB_GAS_ANAL,"C8_fractn",$BE$24:$BF$25)) +IF(ISERROR(DGET(DB_GAS_ANAL,"C9_fractn",$BE$24:$BF$25)),0,DGET(DB_GAS_ANAL,"C9_fractn",$BE$24:$BF$25)) +IF(ISERROR(DGET(DB_GAS_ANAL,"C10_fractn",$BE$24:$BF$25)),0,DGET(DB_GAS_ANAL,"C10_fractn",$BE$24:$BF$25))) ->  | Q39: Max | R39: =IF(ISERROR(DMAX(DB_GAS_ANAL,"CO2_fractn",$BC$24:$BC$25)),"",DMAX(DB_GAS_ANAL,"CO2_fractn",$BC$24:$BC$25)) -> 0.0014 | S39: =IF(ISERROR(DMAX(DB_GAS_ANAL,"H2S_fractn",$BC$24:$BC$25)),"",DMAX(DB_GAS_ANAL,"H2S_fractn",$BC$24:$BC$25)) -> 0 | BB39: =$BL$2 -> 49886 | BC39: =BC37+1 -> 2 | BE39: Fracs - 16 to 20 | BI39: M:33 | BJ39: MADV_033 | BK39: =IF(ISERROR(DGET(DB_ADV_Profile_Gas,$BJ39,$BU$7:$BV$8)),"",$BF$8*DGET(DB_ADV_Profile_Gas,$BJ39,$BU$7:$BV$8)) -> 0 | BL39: =IF(ISERROR(DGET(DB_ADV_Profile_Gas,$BJ39,$BV$7:$BW$8)),"",$BF$8*DGET(DB_ADV_Profile_Gas,$BJ39,$BV$7:$BW$8)) ->  | BM39: =IF(ISERROR(DGET(DB_ADV_Profile_Gas,$BJ39,$BU$9:$BV$10)),"",$BF$8*DGET(DB_ADV_Profile_Gas,$BJ39,$BU$9:$BV$10)) ->  | BN39: =IF(ISERROR(DGET(DB_ADV_Profile_Gas,$BJ39,$BV$9:$BW$10)),"",$BF$8*DGET(DB_ADV_Profile_Gas,$BJ39,$BV$9:$BW$10)) ->  | BO39: =IF(ISERROR(DGET(DB_ADV_Profile_Gas,$BJ39,$BU$11:$BV$12)),"",$BF$8*DGET(DB_ADV_Profile_Gas,$BJ39,$BU$11:$BV$12)) ->  | BP39: =IF(ISERROR(DGET(DB_ADV_Profile_Gas,$BJ39,$BV$11:$BW$12)),"",$BF$8*DGET(DB_ADV_Profile_Gas,$BJ39,$BV$11:$BW$12)) ->  | BQ39: =IF(SUM(BK39:BP39)=0,$BU$5,SUM(BK39:BP39)) ->  | BR39: MPRD_033 | BS39: =IF(ISERROR(DGET(DB_PRD_Profile_Gas,$BR39,$BV$7:$BV$8)),$BU$5,$BF$8*DGET(DB_PRD_Profile_Gas,$BR39,$BV$7:$BV$8)) -> 
C40: =IF($BB26="","",LEFT(BB26,4)&"-"&RIGHT(LEFT(BB26,6),2)&"-"&RIGHT(BB26,2)) ->  | D40: =IF(ISERROR(DGET(DB_GAS_ANAL,"H2_fractn",$BG$24:$BH$25)),"",DGET(DB_GAS_ANAL,"H2_fractn",$BG$24:$BH$25)) ->  | E40: =IF(ISERROR(DGET(DB_GAS_ANAL,"Helium_fractn",$BG$24:$BH$25)),"",DGET(DB_GAS_ANAL,"Helium_fractn",$BG$24:$BH$25)) ->  | F40: =IF(ISERROR(DGET(DB_GAS_ANAL,"CO2_fractn",$BG$24:$BH$25)),"",DGET(DB_GAS_ANAL,"CO2_fractn",$BG$24:$BH$25)) ->  | G40: =IF(ISERROR(DGET(DB_GAS_ANAL,"H2S_fractn",$BG$24:$BH$25)),"",DGET(DB_GAS_ANAL,"H2S_fractn",$BG$24:$BH$25)) ->  | H40: =IF(ISERROR(DGET(DB_GAS_ANAL,"N2_fractn",$BG$24:$BH$25)),"",DGET(DB_GAS_ANAL,"N2_fractn",$BG$24:$BH$25)) ->  | I40: =IF(ISERROR(DGET(DB_GAS_ANAL,"C1_fractn",$BG$24:$BH$25)),"",DGET(DB_GAS_ANAL,"C1_fractn",$BG$24:$BH$25)) ->  | J40: =IF(ISERROR(DGET(DB_GAS_ANAL,"C2_fractn",$BG$24:$BH$25)),"",DGET(DB_GAS_ANAL,"C2_fractn",$BG$24:$BH$25)) ->  | K40: =IF(ISERROR(DGET(DB_GAS_ANAL,"C3_fractn",$BG$24:$BH$25)),"",DGET(DB_GAS_ANAL,"C3_fractn",$BG$24:$BH$25)) ->  | L40: =IF(ISERROR(DGET(DB_GAS_ANAL,"Ic4_fractn",$BG$24:$BH$25)),"",DGET(DB_GAS_ANAL,"Ic4_fractn",$BG$24:$BH$25)) ->  | M40: =IF(ISERROR(DGET(DB_GAS_ANAL,"Nc4_fractn",$BG$24:$BH$25)),"",DGET(DB_GAS_ANAL,"Nc4_fractn",$BG$24:$BH$25)) ->  | N40: =IF(ISERROR(DGET(DB_GAS_ANAL,"Ic5_fractn",$BG$24:$BH$25)),"",DGET(DB_GAS_ANAL,"Ic5_fractn",$BG$24:$BH$25)) ->  | O40: =IF(ISERROR(DGET(DB_GAS_ANAL,"Nc5_fractn",$BG$24:$BH$25)),"",DGET(DB_GAS_ANAL,"Nc5_fractn",$BG$24:$BH$25)) ->  | P40: =IF($BB26="","",IF(ISERROR(DGET(DB_GAS_ANAL,"C6_fractn",$BG$24:$BH$25)),0,DGET(DB_GAS_ANAL,"C6_fractn",$BG$24:$BH$25)) +IF(ISERROR(DGET(DB_GAS_ANAL,"C7_fractn",$BG$24:$BH$25)),0,DGET(DB_GAS_ANAL,"C7_fractn",$BG$24:$BH$25)) +IF(ISERROR(DGET(DB_GAS_ANAL,"C8_fractn",$BG$24:$BH$25)),0,DGET(DB_GAS_ANAL,"C8_fractn",$BG$24:$BH$25)) +IF(ISERROR(DGET(DB_GAS_ANAL,"C9_fractn",$BG$24:$BH$25)),0,DGET(DB_GAS_ANAL,"C9_fractn",$BG$24:$BH$25)) +IF(ISERROR(DGET(DB_GAS_ANAL,"C10_fractn",$BG$24:$BH$25)),0,DGET(DB_GAS_ANAL,"C10_fractn",$BG$24:$BH$25))) ->  | Q40: Min | R40: =IF(ISERROR(DMIN(DB_GAS_ANAL,"CO2_fractn",$BC$24:$BC$25)),"",DMIN(DB_GAS_ANAL,"CO2_fractn",$BC$24:$BC$25)) -> 0.0014 | S40: =IF(ISERROR(DMIN(DB_GAS_ANAL,"H2S_fractn",$BC$24:$BC$25)),"",DMIN(DB_GAS_ANAL,"H2S_fractn",$BC$24:$BC$25)) -> 0 | BB40: WA_NUM | BC40: Compltn_Order | BD40: =IF(ISERROR(DGET(DB_Fracs,"Compltn_Date",$BB40:$BC41)),"",DGET(DB_Fracs,"Compltn_Date",$BB40:$BC41)) ->  | BE40: Fracs - 21 to 25 | BI40: M:34 | BJ40: MADV_034 | BK40: 0 | BR40: MPRD_034
BB41: =$BL$2 -> 49886 | BC41: =BC39+1 -> 3 | BE41: Fracs - 26 to 30 | BI41: M:35 | BJ41: MADV_035 | BK41: 0 | BR41: MPRD_035
A42: Fracs | F42: CO2 | G42: SLH | H42: SLW | I42: DGL | J42: NES | BB42: WA_NUM | BC42: Compltn_Order | BD42: =IF(ISERROR(DGET(DB_Fracs,"Compltn_Date",$BB42:$BC43)),"",DGET(DB_Fracs,"Compltn_Date",$BB42:$BC43)) ->  | BI42: M:36 | BJ42: MADV_036 | BK42: 0 | BR42: MPRD_036
E43: Number | F43: =IF(ISERROR(DSUM(DB_FRAC_SUMMARY,"NUM_CO2_FRACS",$BB$36:$BB$37)),"",DSUM(DB_FRAC_SUMMARY,"NUM_CO2_FRACS",$BB$36:$BB$37)) -> 0 | G43: =IF(ISERROR(DSUM(DB_FRAC_SUMMARY,"NUM_SLH_FRACS",$BB$36:$BB$37)),"",DSUM(DB_FRAC_SUMMARY,"NUM_SLH_FRACS",$BB$36:$BB$37)) -> 0 | H43: =IF(ISERROR(DSUM(DB_FRAC_SUMMARY,"NUM_SLW_FRACS",$BB$36:$BB$37)),"",DSUM(DB_FRAC_SUMMARY,"NUM_SLW_FRACS",$BB$36:$BB$37)) -> 0 | I43: =IF(ISERROR(DSUM(DB_FRAC_SUMMARY,"NUM_DGL_FRACS",$BB$36:$BB$37)),"",DSUM(DB_FRAC_SUMMARY,"NUM_DGL_FRACS",$BB$36:$BB$37)) -> 0 | J43: =IF(ISERROR(DSUM(DB_FRAC_SUMMARY,"NUM_NES_FRACS",$BB$36:$BB$37)),"",DSUM(DB_FRAC_SUMMARY,"NUM_NES_FRACS",$BB$36:$BB$37)) -> 0 | BB43: =$BL$2 -> 49886 | BC43: =BC41+1 -> 4 | BI43: M:37 | BJ43: MADV_037 | BK43: 0 | BR43: MPRD_037
B44: Display | C44: First 5 Fracs | E44: Average Tonnes | F44: =IF(F43<>0,IF(ISERROR(DSUM(DB_FRAC_SUMMARY,"CO2_TONNES",$BB$36:$BB$37)),"",DSUM(DB_FRAC_SUMMARY,"CO2_TONNES",$BB$36:$BB$37))/F43,"") ->  | G44: =IF(G43<>0,IF(ISERROR(DSUM(DB_FRAC_SUMMARY,"SLH_TONNES",$BB$36:$BB$37)),"",DSUM(DB_FRAC_SUMMARY,"SLH_TONNES",$BB$36:$BB$37))/G43,"") ->  | H44: =IF(H43<>0,IF(ISERROR(DSUM(DB_FRAC_SUMMARY,"SLW_TONNES",$BB$36:$BB$37)),"",DSUM(DB_FRAC_SUMMARY,"SLW_TONNES",$BB$36:$BB$37))/H43,"") ->  | I44: =IF(I43<>0,IF(ISERROR(DSUM(DB_FRAC_SUMMARY,"SLW_TONNES",$BB$36:$BB$37)),"",DSUM(DB_FRAC_SUMMARY,"SLW_TONNES",$BB$36:$BB$37))/I43,"") ->  | J44: =IF(J43<>0,IF(ISERROR(DSUM(DB_FRAC_SUMMARY,"SLW_TONNES",$BB$36:$BB$37)),"",DSUM(DB_FRAC_SUMMARY,"SLW_TONNES",$BB$36:$BB$37))/J43,"") ->  | BB44: WA_NUM | BC44: Compltn_Order | BD44: =IF(ISERROR(DGET(DB_Fracs,"Compltn_Date",$BB44:$BC45)),"",DGET(DB_Fracs,"Compltn_Date",$BB44:$BC45)) ->  | BI44: M:38 | BJ44: MADV_038 | BK44: 0 | BR44: MPRD_038
U45: ="Annual Gas Production - All Zones - "&$B$20 -> Annual Gas Production - All Zones - 000 MCF | BB45: =$BL$2 -> 49886 | BC45: =BC43+1 -> 5 | BI45: M:39 | BJ45: MADV_039 | BK45: 0 | BR45: MPRD_039
B46: UWI | C46: Date | D46: Description | BD46: =IF(ISERROR(DGET(DB_Fracs,"Compltn_Date",$BB46:$BC47)),"",DGET(DB_Fracs,"Compltn_Date",$BB46:$BC47)) ->  | BI46: M:40 | BJ46: MADV_040 | BK46: 0 | BR46: MPRD_040
A47: ="Frac #"&BC37 -> Frac #1 | B47: =IF(ISERROR(DGET(DB_Fracs,"UWI",$BB36:$BC37)),"",DGET(DB_Fracs,"UWI",$BB36:$BC37)) ->  | C47: =IF(BD36="","",DATE(ROUND(BD36/10000,0),RIGHT(LEFT(BD36,6),2),RIGHT(BD36,2))) ->  | D47: =IF(ISERROR(DGET(DB_Fracs,"Compltn_Summry",$BB36:$BC37)),"",DGET(DB_Fracs,"Compltn_Summry",$BB36:$BC37)) ->  | BI47: M:41 | BJ47: MADV_041 | BK47: 0 | BR47: MPRD_041
BD48: =IF(ISERROR(DGET(DB_Fracs,"Compltn_Date",$BB48:$BC49)),"",DGET(DB_Fracs,"Compltn_Date",$BB48:$BC49)) ->  | BI48: M:42 | BJ48: MADV_042 | BK48: 0 | BR48: MPRD_042
A49: ="Frac #"&BC39 -> Frac #2 | B49: =IF(ISERROR(DGET(DB_Fracs,"UWI",$BB38:$BC39)),"",DGET(DB_Fracs,"UWI",$BB38:$BC39)) ->  | C49: =IF(BD38="","",DATE(ROUND(BD38/10000,0),RIGHT(LEFT(BD38,6),2),RIGHT(BD38,2))) ->  | D49: =IF(ISERROR(DGET(DB_Fracs,"Compltn_Summry",$BB38:$BC39)),"",DGET(DB_Fracs,"Compltn_Summry",$BB38:$BC39)) ->  | BI49: M:43 | BJ49: MADV_043 | BK49: 0 | BR49: MPRD_043
BD50: =IF(ISERROR(DGET(DB_Fracs,"Compltn_Date",$BB50:$BC51)),"",DGET(DB_Fracs,"Compltn_Date",$BB50:$BC51)) ->  | BI50: M:44 | BJ50: MADV_044 | BK50: 0 | BR50: MPRD_044
A51: ="Frac #"&BC41 -> Frac #3 | B51: =IF(ISERROR(DGET(DB_Fracs,"UWI",$BB40:$BC41)),"",DGET(DB_Fracs,"UWI",$BB40:$BC41)) ->  | C51: =IF(BD40="","",DATE(ROUND(BD40/10000,0),RIGHT(LEFT(BD40,6),2),RIGHT(BD40,2))) ->  | D51: =IF(ISERROR(DGET(DB_Fracs,"Compltn_Summry",$BB40:$BC41)),"",DGET(DB_Fracs,"Compltn_Summry",$BB40:$BC41)) ->  | BI51: M:45 | BJ51: MADV_045 | BK51: 0 | BR51: MPRD_045
BD52: =IF(ISERROR(DGET(DB_Fracs,"Compltn_Date",$BB52:$BC53)),"",DGET(DB_Fracs,"Compltn_Date",$BB52:$BC53)) ->  | BI52: M:46 | BJ52: MADV_046 | BK52: 0 | BR52: MPRD_046
A53: ="Frac #"&BC43 -> Frac #4 | B53: =IF(ISERROR(DGET(DB_Fracs,"UWI",$BB42:$BC43)),"",DGET(DB_Fracs,"UWI",$BB42:$BC43)) ->  | C53: =IF(BD42="","",DATE(ROUND(BD42/10000,0),RIGHT(LEFT(BD42,6),2),RIGHT(BD42,2))) ->  | D53: =IF(ISERROR(DGET(DB_Fracs,"Compltn_Summry",$BB42:$BC43)),"",DGET(DB_Fracs,"Compltn_Summry",$BB42:$BC43)) ->  | BI53: M:47 | BJ53: MADV_047 | BK53: 0 | BR53: MPRD_047
BD54: =IF(ISERROR(DGET(DB_Fracs,"Compltn_Date",$BB54:$BC55)),"",DGET(DB_Fracs,"Compltn_Date",$BB54:$BC55)) ->  | BI54: M:48 | BJ54: MADV_048 | BK54: 0 | BR54: MPRD_048
A55: ="Frac #"&BC45 -> Frac #5 | B55: =IF(ISERROR(DGET(DB_Fracs,"UWI",$BB44:$BC45)),"",DGET(DB_Fracs,"UWI",$BB44:$BC45)) ->  | C55: =IF(BD44="","",DATE(ROUND(BD44/10000,0),RIGHT(LEFT(BD44,6),2),RIGHT(BD44,2))) ->  | D55: =IF(ISERROR(DGET(DB_Fracs,"Compltn_Summry",$BB44:$BC45)),"",DGET(DB_Fracs,"Compltn_Summry",$BB44:$BC45)) ->  | BI55: M:49 | BJ55: MADV_049 | BK55: 0 | BR55: MPRD_049
BD56: =IF(ISERROR(DGET(DB_Fracs,"Compltn_Date",$BB56:$BC57)),"",DGET(DB_Fracs,"Compltn_Date",$BB56:$BC57)) ->  | BI56: M:50 | BJ56: MADV_050 | BK56: 0 | BR56: MPRD_050
A57: Abandonment Details | BI57: M:51 | BJ57: MADV_051 | BK57: 0 | BR57: MPRD_051
BD58: =IF(ISERROR(DGET(DB_Fracs,"Compltn_Date",$BB58:$BC59)),"",DGET(DB_Fracs,"Compltn_Date",$BB58:$BC59)) ->  | BI58: M:52 | BJ58: MADV_052 | BK58: 0 | BR58: MPRD_052
B59: Display | C59: First 5 Records | K59: Bridge | BI59: M:53 | BJ59: MADV_053 | BK59: 0 | BR59: MPRD_053
D60: Event | E60: Plug | F60: Plug | G60: Top | H60: Base | I60: Cement | J60: Cement | K60: Plug Set | BD60: =IF(ISERROR(DGET(DB_Fracs,"Compltn_Date",$BB60:$BC61)),"",DGET(DB_Fracs,"Compltn_Date",$BB60:$BC61)) ->  | BI60: M:54 | BJ60: MADV_054 | BK60: 0 | BR60: MPRD_054
B61: UWI | C61: Date | D61: Seq | E61: Number | F61: Type | G61: Depth | H61: Depth | I61: Volume | J61: Grade | K61: Depth | L61: Remarks | BI61: M:55 | BJ61: MADV_055 | BK61: 0 | BR61: MPRD_055
A62: ="Rec #"&BC64 -> Rec #1 | B62: =IF(ISERROR(DGET(DB_ABANDON,"UWI",$BB63:$BC64)),"",DGET(DB_ABANDON,"UWI",$BB63:$BC64)) ->  | C62: =IF(BD63="","",DATE(ROUND(BD63/10000,0),RIGHT(LEFT(BD63,6),2),RIGHT(BD63,2))) ->  | D62: =IF(ISERROR(DGET(DB_ABANDON,"Drillng_Event_Seq",$BB63:$BC64)),"",DGET(DB_ABANDON,"Drillng_Event_Seq",$BB63:$BC64)) ->  | E62: =IF(ISERROR(DGET(DB_ABANDON,"PLUG_NUM",$BB63:$BC64)),"",DGET(DB_ABANDON,"PLUG_NUM",$BB63:$BC64)) ->  | F62: =IF(ISERROR(DGET(DB_ABANDON,"PLUG_TYPE",$BB63:$BC64)),"",DGET(DB_ABANDON,"PLUG_TYPE",$BB63:$BC64)) ->  | G62: =IF(ISERROR(DGET(DB_ABANDON,"Top_Depth",$BB63:$BC64)),"",DGET(DB_ABANDON,"Top_Depth",$BB63:$BC64)) ->  | H62: =IF(ISERROR(DGET(DB_ABANDON,"Base_Depth",$BB63:$BC64)),"",DGET(DB_ABANDON,"Base_Depth",$BB63:$BC64)) ->  | I62: =IF(ISERROR(DGET(DB_ABANDON,"Cement_Vol",$BB63:$BC64)),"",DGET(DB_ABANDON,"Cement_Vol",$BB63:$BC64)) ->  | J62: =IF(ISERROR(DGET(DB_ABANDON,"Cement_Grade",$BB63:$BC64)),"",DGET(DB_ABANDON,"Cement_Grade",$BB63:$BC64)) ->  | K62: =IF(ISERROR(DGET(DB_ABANDON,"Bridge_Plug_Set_Depth",$BB63:$BC64)),"",DGET(DB_ABANDON,"Bridge_Plug_Set_Depth",$BB63:$BC64)) ->  | L62: =IF(ISERROR(DGET(DB_ABANDON,"Remarks",$BB63:$BC64)),"",DGET(DB_ABANDON,"Remarks",$BB63:$BC64)) ->  | BI62: M:56 | BJ62: MADV_056 | BK62: 0 | BR62: MPRD_056
BB63: WA_NUM | BC63: Order | BD63: =IF(ISERROR(DGET(DB_ABANDON,"Abandonment_Date",$BB63:$BC64)),"",DGET(DB_ABANDON,"Abandonment_Date",$BB63:$BC64)) ->  | BE63: First 5 Records | BI63: M:57 | BJ63: MADV_057 | BK63: 0 | BR63: MPRD_057
A64: ="Rec #"&BC66 -> Rec #2 | B64: =IF(ISERROR(DGET(DB_ABANDON,"UWI",$BB65:$BC66)),"",DGET(DB_ABANDON,"UWI",$BB65:$BC66)) ->  | C64: =IF(BD65="","",DATE(ROUND(BD65/10000,0),RIGHT(LEFT(BD65,6),2),RIGHT(BD65,2))) ->  | D64: =IF(ISERROR(DGET(DB_ABANDON,"Drillng_Event_Seq",$BB65:$BC66)),"",DGET(DB_ABANDON,"Drillng_Event_Seq",$BB65:$BC66)) ->  | E64: =IF(ISERROR(DGET(DB_ABANDON,"PLUG_NUM",$BB65:$BC66)),"",DGET(DB_ABANDON,"PLUG_NUM",$BB65:$BC66)) ->  | F64: =IF(ISERROR(DGET(DB_ABANDON,"PLUG_TYPE",$BB65:$BC66)),"",DGET(DB_ABANDON,"PLUG_TYPE",$BB65:$BC66)) ->  | G64: =IF(ISERROR(DGET(DB_ABANDON,"Top_Depth",$BB65:$BC66)),"",DGET(DB_ABANDON,"Top_Depth",$BB65:$BC66)) ->  | H64: =IF(ISERROR(DGET(DB_ABANDON,"Base_Depth",$BB65:$BC66)),"",DGET(DB_ABANDON,"Base_Depth",$BB65:$BC66)) ->  | I64: =IF(ISERROR(DGET(DB_ABANDON,"Cement_Vol",$BB65:$BC66)),"",DGET(DB_ABANDON,"Cement_Vol",$BB65:$BC66)) ->  | J64: =IF(ISERROR(DGET(DB_ABANDON,"Cement_Grade",$BB65:$BC66)),"",DGET(DB_ABANDON,"Cement_Grade",$BB65:$BC66)) ->  | K64: =IF(ISERROR(DGET(DB_ABANDON,"Bridge_Plug_Set_Depth",$BB65:$BC66)),"",DGET(DB_ABANDON,"Bridge_Plug_Set_Depth",$BB65:$BC66)) ->  | L64: =IF(ISERROR(DGET(DB_ABANDON,"Remarks",$BB65:$BC66)),"",DGET(DB_ABANDON,"Remarks",$BB65:$BC66)) ->  | BB64: =$BL$2 -> 49886 | BC64: =IF($C$59=$BE$64,6,IF($C$59=$BE$65,11,IF($C$59=$BE$66,16,IF($C$59=$BE$67,21,IF($C$59=$BE$68,26,1))))) -> 1 | BE64: Records - 6 to 10 | BI64: M:58 | BJ64: MADV_058 | BK64: 0 | BR64: MPRD_058
BB65: WA_NUM | BC65: Order | BD65: =IF(ISERROR(DGET(DB_ABANDON,"Abandonment_Date",$BB65:$BC66)),"",DGET(DB_ABANDON,"Abandonment_Date",$BB65:$BC66)) ->  | BE65: Records - 11 to 15 | BI65: M:59 | BJ65: MADV_059 | BK65: 0 | BR65: MPRD_059
A66: ="Rec #"&BC68 -> Rec #3 | B66: =IF(ISERROR(DGET(DB_ABANDON,"UWI",$BB67:$BC68)),"",DGET(DB_ABANDON,"UWI",$BB67:$BC68)) ->  | C66: =IF(BD67="","",DATE(ROUND(BD67/10000,0),RIGHT(LEFT(BD67,6),2),RIGHT(BD67,2))) ->  | D66: =IF(ISERROR(DGET(DB_ABANDON,"Drillng_Event_Seq",$BB67:$BC68)),"",DGET(DB_ABANDON,"Drillng_Event_Seq",$BB67:$BC68)) ->  | E66: =IF(ISERROR(DGET(DB_ABANDON,"PLUG_NUM",$BB67:$BC68)),"",DGET(DB_ABANDON,"PLUG_NUM",$BB67:$BC68)) ->  | F66: =IF(ISERROR(DGET(DB_ABANDON,"PLUG_TYPE",$BB67:$BC68)),"",DGET(DB_ABANDON,"PLUG_TYPE",$BB67:$BC68)) ->  | G66: =IF(ISERROR(DGET(DB_ABANDON,"Top_Depth",$BB67:$BC68)),"",DGET(DB_ABANDON,"Top_Depth",$BB67:$BC68)) ->  | H66: =IF(ISERROR(DGET(DB_ABANDON,"Base_Depth",$BB67:$BC68)),"",DGET(DB_ABANDON,"Base_Depth",$BB67:$BC68)) ->  | I66: =IF(ISERROR(DGET(DB_ABANDON,"Cement_Vol",$BB67:$BC68)),"",DGET(DB_ABANDON,"Cement_Vol",$BB67:$BC68)) ->  | J66: =IF(ISERROR(DGET(DB_ABANDON,"Cement_Grade",$BB67:$BC68)),"",DGET(DB_ABANDON,"Cement_Grade",$BB67:$BC68)) ->  | K66: =IF(ISERROR(DGET(DB_ABANDON,"Bridge_Plug_Set_Depth",$BB67:$BC68)),"",DGET(DB_ABANDON,"Bridge_Plug_Set_Depth",$BB67:$BC68)) ->  | L66: =IF(ISERROR(DGET(DB_ABANDON,"Remarks",$BB67:$BC68)),"",DGET(DB_ABANDON,"Remarks",$BB67:$BC68)) ->  | BB66: =$BL$2 -> 49886 | BC66: =$BC64+1 -> 2 | BE66: Records - 16 to 20 | BI66: M:60 | BJ66: MADV_060 | BK66: 0 | BR66: MPRD_060
BB67: WA_NUM | BC67: Order | BD67: =IF(ISERROR(DGET(DB_ABANDON,"Abandonment_Date",$BB67:$BC68)),"",DGET(DB_ABANDON,"Abandonment_Date",$BB67:$BC68)) ->  | BE67: Records - 21 to 25 | BI67: Y:01 | BJ67: YADV_01 | BK67: 7.720434603 | BQ67: 7.720434603 | BR67: YPRD_01 | BS67: 2630.348112
A68: ="Rec #"&BC70 -> Rec #4 | B68: =IF(ISERROR(DGET(DB_ABANDON,"UWI",$BB69:$BC70)),"",DGET(DB_ABANDON,"UWI",$BB69:$BC70)) ->  | C68: =IF(BD69="","",DATE(ROUND(BD69/10000,0),RIGHT(LEFT(BD69,6),2),RIGHT(BD69,2))) ->  | D68: =IF(ISERROR(DGET(DB_ABANDON,"Drillng_Event_Seq",$BB69:$BC70)),"",DGET(DB_ABANDON,"Drillng_Event_Seq",$BB69:$BC70)) ->  | E68: =IF(ISERROR(DGET(DB_ABANDON,"PLUG_NUM",$BB69:$BC70)),"",DGET(DB_ABANDON,"PLUG_NUM",$BB69:$BC70)) ->  | F68: =IF(ISERROR(DGET(DB_ABANDON,"PLUG_TYPE",$BB69:$BC70)),"",DGET(DB_ABANDON,"PLUG_TYPE",$BB69:$BC70)) ->  | G68: =IF(ISERROR(DGET(DB_ABANDON,"Top_Depth",$BB69:$BC70)),"",DGET(DB_ABANDON,"Top_Depth",$BB69:$BC70)) ->  | H68: =IF(ISERROR(DGET(DB_ABANDON,"Base_Depth",$BB69:$BC70)),"",DGET(DB_ABANDON,"Base_Depth",$BB69:$BC70)) ->  | I68: =IF(ISERROR(DGET(DB_ABANDON,"Cement_Vol",$BB69:$BC70)),"",DGET(DB_ABANDON,"Cement_Vol",$BB69:$BC70)) ->  | J68: =IF(ISERROR(DGET(DB_ABANDON,"Cement_Grade",$BB69:$BC70)),"",DGET(DB_ABANDON,"Cement_Grade",$BB69:$BC70)) ->  | K68: =IF(ISERROR(DGET(DB_ABANDON,"Bridge_Plug_Set_Depth",$BB69:$BC70)),"",DGET(DB_ABANDON,"Bridge_Plug_Set_Depth",$BB69:$BC70)) ->  | L68: =IF(ISERROR(DGET(DB_ABANDON,"Remarks",$BB69:$BC70)),"",DGET(DB_ABANDON,"Remarks",$BB69:$BC70)) ->  | BB68: =$BL$2 -> 49886 | BC68: =$BC66+1 -> 3 | BE68: Records - 26 to 30 | BI68: Y:02 | BJ68: YADV_02 | BK68: 3.87004863 | BQ68: 3.87004863 | BR68: YPRD_02 | BS68: 472.1438148
BB69: WA_NUM | BC69: Order | BD69: =IF(ISERROR(DGET(DB_ABANDON,"Abandonment_Date",$BB69:$BC70)),"",DGET(DB_ABANDON,"Abandonment_Date",$BB69:$BC70)) ->  | BI69: Y:03 | BJ69: YADV_03 | BK69: 0 | BR69: YPRD_03
A70: ="Rec #"&BC72 -> Rec #5 | B70: =IF(ISERROR(DGET(DB_ABANDON,"UWI",$BB71:$BC72)),"",DGET(DB_ABANDON,"UWI",$BB71:$BC72)) ->  | C70: =IF(BD71="","",DATE(ROUND(BD71/10000,0),RIGHT(LEFT(BD71,6),2),RIGHT(BD71,2))) ->  | D70: =IF(ISERROR(DGET(DB_ABANDON,"Drillng_Event_Seq",$BB71:$BC72)),"",DGET(DB_ABANDON,"Drillng_Event_Seq",$BB71:$BC72)) ->  | E70: =IF(ISERROR(DGET(DB_ABANDON,"PLUG_NUM",$BB71:$BC72)),"",DGET(DB_ABANDON,"PLUG_NUM",$BB71:$BC72)) ->  | F70: =IF(ISERROR(DGET(DB_ABANDON,"PLUG_TYPE",$BB71:$BC72)),"",DGET(DB_ABANDON,"PLUG_TYPE",$BB71:$BC72)) ->  | G70: =IF(ISERROR(DGET(DB_ABANDON,"Top_Depth",$BB71:$BC72)),"",DGET(DB_ABANDON,"Top_Depth",$BB71:$BC72)) ->  | H70: =IF(ISERROR(DGET(DB_ABANDON,"Base_Depth",$BB71:$BC72)),"",DGET(DB_ABANDON,"Base_Depth",$BB71:$BC72)) ->  | I70: =IF(ISERROR(DGET(DB_ABANDON,"Cement_Vol",$BB71:$BC72)),"",DGET(DB_ABANDON,"Cement_Vol",$BB71:$BC72)) ->  | J70: =IF(ISERROR(DGET(DB_ABANDON,"Cement_Grade",$BB71:$BC72)),"",DGET(DB_ABANDON,"Cement_Grade",$BB71:$BC72)) ->  | K70: =IF(ISERROR(DGET(DB_ABANDON,"Bridge_Plug_Set_Depth",$BB71:$BC72)),"",DGET(DB_ABANDON,"Bridge_Plug_Set_Depth",$BB71:$BC72)) ->  | L70: =IF(ISERROR(DGET(DB_ABANDON,"Remarks",$BB71:$BC72)),"",DGET(DB_ABANDON,"Remarks",$BB71:$BC72)) ->  | BB70: =$BL$2 -> 49886 | BC70: =$BC68+1 -> 4 | BI70: Y:04 | BJ70: YADV_04 | BK70: 0 | BR70: YPRD_04
BB71: WA_NUM | BC71: Order | BD71: =IF(ISERROR(DGET(DB_ABANDON,"Abandonment_Date",$BB71:$BC72)),"",DGET(DB_ABANDON,"Abandonment_Date",$BB71:$BC72)) ->  | BI71: Y:05 | BJ71: YADV_05 | BK71: =IF(ISERROR(DGET(DB_ADV_Profile_Gas,$BJ71,$BU$7:$BV$8)),"",$BF$8*DGET(DB_ADV_Profile_Gas,$BJ71,$BU$7:$BV$8)) -> 0 | BL71: =IF(ISERROR(DGET(DB_ADV_Profile_Gas,$BJ71,$BV$7:$BW$8)),"",$BF$8*DGET(DB_ADV_Profile_Gas,$BJ71,$BV$7:$BW$8)) ->  | BM71: =IF(ISERROR(DGET(DB_ADV_Profile_Gas,$BJ71,$BU$9:$BV$10)),"",$BF$8*DGET(DB_ADV_Profile_Gas,$BJ71,$BU$9:$BV$10)) ->  | BN71: =IF(ISERROR(DGET(DB_ADV_Profile_Gas,$BJ71,$BV$9:$BW$10)),"",$BF$8*DGET(DB_ADV_Profile_Gas,$BJ71,$BV$9:$BW$10)) ->  | BO71: =IF(ISERROR(DGET(DB_ADV_Profile_Gas,$BJ71,$BU$11:$BV$12)),"",$BF$8*DGET(DB_ADV_Profile_Gas,$BJ71,$BU$11:$BV$12)) ->  | BP71: =IF(ISERROR(DGET(DB_ADV_Profile_Gas,$BJ71,$BV$11:$BW$12)),"",$BF$8*DGET(DB_ADV_Profile_Gas,$BJ71,$BV$11:$BW$12)) ->  | BR71: YPRD_05 | BS71: =IF(ISERROR(DGET(DB_PRD_Profile_Gas,$BR71,$BV$7:$BV$8)),$BU$5,$BF$8*DGET(DB_PRD_Profile_Gas,$BR71,$BV$7:$BV$8)) -> 
A72: Casing Details | BB72: =$BL$2 -> 49886 | BC72: =$BC70+1 -> 5 | BI72: Y:06 | BJ72: YADV_06 | BK72: 0 | BR72: YPRD_06
BI73: Y:07 | BJ73: YADV_07 | BK73: 0 | BR73: YPRD_07
B74: Display | C74: Last 5 Segments | E74: Casing | H74: Casing | I74: Casing | BI74: Y:08 | BJ74: YADV_08 | BK74: 0 | BR74: YPRD_08
D75: Event | E75: Shoe | F75: Casing | G75: Casing | H75: Grade | I75: Joint | J75: Cement | K75: Casing | BD75: =IF(ISERROR(DGET(DB_Fracs,"Compltn_Date",$BB75:$BC76)),"",DGET(DB_Fracs,"Compltn_Date",$BB75:$BC76)) ->  | BI75: Y:09 | BJ75: YADV_09 | BK75: 0 | BR75: YPRD_09
B76: UWI | C76: Date | D76: Seq | E76: Depth | F76: Size | G76: Type | H76: Code | I76: Quantity | J76: Volume | K76: Weight | L76: Comments | BI76: Y:10 | BJ76: YADV_10 | BK76: 0 | BR76: YPRD_10
A77: ="Seg #"&BC79 -> Seg #1 | B77: =IF(ISERROR(DGET(DB_CASINGS,"UWI",$BB78:$BC79)),"",DGET(DB_CASINGS,"UWI",$BB78:$BC79)) -> 207B090A094B1600 | C77: =IF(BD78="","",DATE(ROUND(BD78/10000,0),RIGHT(LEFT(BD78,6),2),RIGHT(BD78,2))) -> 2024-04-21 | D77: =IF(ISERROR(DGET(DB_CASINGS,"Drillng_Event_Seq",$BB78:$BC79)),"",DGET(DB_CASINGS,"Drillng_Event_Seq",$BB78:$BC79)) -> 0 | E77: =IF(ISERROR(DGET(DB_CASINGS,"CASING_SHOE_DEPTH",$BB78:$BC79)),"",DGET(DB_CASINGS,"CASING_SHOE_DEPTH",$BB78:$BC79)) -> 4360.54 | F77: =IF(ISERROR(DGET(DB_CASINGS,"CASING_SIZE",$BB78:$BC79)),"",DGET(DB_CASINGS,"CASING_SIZE",$BB78:$BC79)) -> 114.3 | G77: =IF(ISERROR(DGET(DB_CASINGS,"CASING_TYPE",$BB78:$BC79)),"",DGET(DB_CASINGS,"CASING_TYPE",$BB78:$BC79)) -> PROD | H77: =IF(ISERROR(DGET(DB_CASINGS,"CASING_GRADE_CODE",$BB78:$BC79)),"",DGET(DB_CASINGS,"CASING_GRADE_CODE",$BB78:$BC79)) -> TN110S | I77: =IF(ISERROR(DGET(DB_CASINGS,"CASING_JOINT_QTY",$BB78:$BC79)),"",DGET(DB_CASINGS,"CASING_JOINT_QTY",$BB78:$BC79)) -> 308 | J77: =IF(ISERROR(DGET(DB_CASINGS,"CEMENT_VOL",$BB78:$BC79)),"",DGET(DB_CASINGS,"CEMENT_VOL",$BB78:$BC79)) -> 5.2 | K77: =IF(ISERROR(DGET(DB_CASINGS,"CASING_WEIGHT",$BB78:$BC79)),"",DGET(DB_CASINGS,"CASING_WEIGHT",$BB78:$BC79)) -> 22.47 | L77: =IF(ISERROR(DGET(DB_CASINGS,"CASING_COMMENTS",$BB78:$BC79)),"",DGET(DB_CASINGS,"CASING_COMMENTS",$BB78:$BC79)) ->  | BI77: Y:11 | BJ77: YADV_11 | BK77: 0 | BR77: YPRD_11
BB78: WA_NUM | BC78: Order | BD78: =IF(ISERROR(DGET(DB_CASINGS,"CASING_DATE",$BB78:$BC79)),"",DGET(DB_CASINGS,"CASING_DATE",$BB78:$BC79)) -> 20240421 | BE78: Last 5 Segments | BI78: Y:12 | BJ78: YADV_12 | BK78: 0 | BR78: YPRD_12
A79: ="Seg #"&BC81 -> Seg #2 | B79: =IF(ISERROR(DGET(DB_CASINGS,"UWI",$BB80:$BC81)),"",DGET(DB_CASINGS,"UWI",$BB80:$BC81)) -> 207B090A094B1600 | C79: =IF(BD80="","",DATE(ROUND(BD80/10000,0),RIGHT(LEFT(BD80,6),2),RIGHT(BD80,2))) -> 2024-04-21 | D79: =IF(ISERROR(DGET(DB_CASINGS,"Drillng_Event_Seq",$BB80:$BC81)),"",DGET(DB_CASINGS,"Drillng_Event_Seq",$BB80:$BC81)) -> 0 | E79: =IF(ISERROR(DGET(DB_CASINGS,"CASING_SHOE_DEPTH",$BB80:$BC81)),"",DGET(DB_CASINGS,"CASING_SHOE_DEPTH",$BB80:$BC81)) -> 4360.54 | F79: =IF(ISERROR(DGET(DB_CASINGS,"CASING_SIZE",$BB80:$BC81)),"",DGET(DB_CASINGS,"CASING_SIZE",$BB80:$BC81)) -> 114.3 | G79: =IF(ISERROR(DGET(DB_CASINGS,"CASING_TYPE",$BB80:$BC81)),"",DGET(DB_CASINGS,"CASING_TYPE",$BB80:$BC81)) -> PROD | H79: =IF(ISERROR(DGET(DB_CASINGS,"CASING_GRADE_CODE",$BB80:$BC81)),"",DGET(DB_CASINGS,"CASING_GRADE_CODE",$BB80:$BC81)) -> TN110S | I79: =IF(ISERROR(DGET(DB_CASINGS,"CASING_JOINT_QTY",$BB80:$BC81)),"",DGET(DB_CASINGS,"CASING_JOINT_QTY",$BB80:$BC81)) -> 308 | J79: =IF(ISERROR(DGET(DB_CASINGS,"CEMENT_VOL",$BB80:$BC81)),"",DGET(DB_CASINGS,"CEMENT_VOL",$BB80:$BC81)) -> 22 | K79: =IF(ISERROR(DGET(DB_CASINGS,"CASING_WEIGHT",$BB80:$BC81)),"",DGET(DB_CASINGS,"CASING_WEIGHT",$BB80:$BC81)) -> 22.47 | L79: =IF(ISERROR(DGET(DB_CASINGS,"CASING_COMMENTS",$BB80:$BC81)),"",DGET(DB_CASINGS,"CASING_COMMENTS",$BB80:$BC81)) ->  | BB79: =$BL$2 -> 49886 | BC79: =IF($C$74=$BE$79,6,IF($C$74=$BE$80,11,IF($C$74=$BE$81,16,1))) -> 1 | BE79: Segments - 6 to 10 | BI79: =CONCATENATE(LEFT(BJ79,1),":",RIGHT(BJ79,2)) -> Y:13 | BJ79: YADV_13 | BK79: 0 | BR79: YPRD_13
BB80: WA_NUM | BC80: Order | BD80: =IF(ISERROR(DGET(DB_CASINGS,"CASING_DATE",$BB80:$BC81)),"",DGET(DB_CASINGS,"CASING_DATE",$BB80:$BC81)) -> 20240421 | BE80: Segments - 11 to 15 | BI80: Y:14 | BJ80: YADV_14 | BK80: 0 | BR80: YPRD_14
A81: ="Seg #"&BC83 -> Seg #3 | B81: =IF(ISERROR(DGET(DB_CASINGS,"UWI",$BB82:$BC83)),"",DGET(DB_CASINGS,"UWI",$BB82:$BC83)) -> 207B090A094B1600 | C81: =IF(BD82="","",DATE(ROUND(BD82/10000,0),RIGHT(LEFT(BD82,6),2),RIGHT(BD82,2))) -> 2024-04-21 | D81: =IF(ISERROR(DGET(DB_CASINGS,"Drillng_Event_Seq",$BB82:$BC83)),"",DGET(DB_CASINGS,"Drillng_Event_Seq",$BB82:$BC83)) -> 0 | E81: =IF(ISERROR(DGET(DB_CASINGS,"CASING_SHOE_DEPTH",$BB82:$BC83)),"",DGET(DB_CASINGS,"CASING_SHOE_DEPTH",$BB82:$BC83)) -> 4360.54 | F81: =IF(ISERROR(DGET(DB_CASINGS,"CASING_SIZE",$BB82:$BC83)),"",DGET(DB_CASINGS,"CASING_SIZE",$BB82:$BC83)) -> 114.3 | G81: =IF(ISERROR(DGET(DB_CASINGS,"CASING_TYPE",$BB82:$BC83)),"",DGET(DB_CASINGS,"CASING_TYPE",$BB82:$BC83)) -> PROD | H81: =IF(ISERROR(DGET(DB_CASINGS,"CASING_GRADE_CODE",$BB82:$BC83)),"",DGET(DB_CASINGS,"CASING_GRADE_CODE",$BB82:$BC83)) -> TN110S | I81: =IF(ISERROR(DGET(DB_CASINGS,"CASING_JOINT_QTY",$BB82:$BC83)),"",DGET(DB_CASINGS,"CASING_JOINT_QTY",$BB82:$BC83)) -> 308 | J81: =IF(ISERROR(DGET(DB_CASINGS,"CEMENT_VOL",$BB82:$BC83)),"",DGET(DB_CASINGS,"CEMENT_VOL",$BB82:$BC83)) ->  | K81: =IF(ISERROR(DGET(DB_CASINGS,"CASING_WEIGHT",$BB82:$BC83)),"",DGET(DB_CASINGS,"CASING_WEIGHT",$BB82:$BC83)) -> 22.47 | L81: =IF(ISERROR(DGET(DB_CASINGS,"CASING_COMMENTS",$BB82:$BC83)),"",DGET(DB_CASINGS,"CASING_COMMENTS",$BB82:$BC83)) ->  | BB81: =$BL$2 -> 49886 | BC81: =$BC79+1 -> 2 | BE81: Segments - 16 to 20 | BI81: Y:15 | BJ81: YADV_15 | BK81: 0 | BR81: YPRD_15
BB82: WA_NUM | BC82: Order | BD82: =IF(ISERROR(DGET(DB_CASINGS,"CASING_DATE",$BB82:$BC83)),"",DGET(DB_CASINGS,"CASING_DATE",$BB82:$BC83)) -> 20240421 | BI82: Y:16 | BJ82: YADV_16 | BK82: 0 | BR82: YPRD_16
A83: ="Seg #"&BC85 -> Seg #4 | B83: =IF(ISERROR(DGET(DB_CASINGS,"UWI",$BB84:$BC85)),"",DGET(DB_CASINGS,"UWI",$BB84:$BC85)) -> 207B090A094B1600 | C83: =IF(BD84="","",DATE(ROUND(BD84/10000,0),RIGHT(LEFT(BD84,6),2),RIGHT(BD84,2))) -> 2024-04-11 | D83: =IF(ISERROR(DGET(DB_CASINGS,"Drillng_Event_Seq",$BB84:$BC85)),"",DGET(DB_CASINGS,"Drillng_Event_Seq",$BB84:$BC85)) -> 0 | E83: =IF(ISERROR(DGET(DB_CASINGS,"CASING_SHOE_DEPTH",$BB84:$BC85)),"",DGET(DB_CASINGS,"CASING_SHOE_DEPTH",$BB84:$BC85)) -> 616.38 | F83: =IF(ISERROR(DGET(DB_CASINGS,"CASING_SIZE",$BB84:$BC85)),"",DGET(DB_CASINGS,"CASING_SIZE",$BB84:$BC85)) -> 177.8 | G83: =IF(ISERROR(DGET(DB_CASINGS,"CASING_TYPE",$BB84:$BC85)),"",DGET(DB_CASINGS,"CASING_TYPE",$BB84:$BC85)) -> SURF | H83: =IF(ISERROR(DGET(DB_CASINGS,"CASING_GRADE_CODE",$BB84:$BC85)),"",DGET(DB_CASINGS,"CASING_GRADE_CODE",$BB84:$BC85)) -> L80-IC | I83: =IF(ISERROR(DGET(DB_CASINGS,"CASING_JOINT_QTY",$BB84:$BC85)),"",DGET(DB_CASINGS,"CASING_JOINT_QTY",$BB84:$BC85)) -> 43 | J83: =IF(ISERROR(DGET(DB_CASINGS,"CEMENT_VOL",$BB84:$BC85)),"",DGET(DB_CASINGS,"CEMENT_VOL",$BB84:$BC85)) -> 26 | K83: =IF(ISERROR(DGET(DB_CASINGS,"CASING_WEIGHT",$BB84:$BC85)),"",DGET(DB_CASINGS,"CASING_WEIGHT",$BB84:$BC85)) -> 34.23 | L83: =IF(ISERROR(DGET(DB_CASINGS,"CASING_COMMENTS",$BB84:$BC85)),"",DGET(DB_CASINGS,"CASING_COMMENTS",$BB84:$BC85)) ->  | BB83: =$BL$2 -> 49886 | BC83: =$BC81+1 -> 3 | BI83: Y:17 | BJ83: YADV_17 | BK83: 0 | BR83: YPRD_17
BB84: WA_NUM | BC84: Order | BD84: =IF(ISERROR(DGET(DB_CASINGS,"CASING_DATE",$BB84:$BC85)),"",DGET(DB_CASINGS,"CASING_DATE",$BB84:$BC85)) -> 20240411 | BI84: Y:18 | BJ84: YADV_18 | BK84: 0 | BR84: YPRD_18
A85: ="Seg #"&BC87 -> Seg #5 | B85: =IF(ISERROR(DGET(DB_CASINGS,"UWI",$BB86:$BC87)),"",DGET(DB_CASINGS,"UWI",$BB86:$BC87)) -> 207B090A094B1600 | C85: =IF(BD86="","",DATE(ROUND(BD86/10000,0),RIGHT(LEFT(BD86,6),2),RIGHT(BD86,2))) -> 2024-02-29 | D85: =IF(ISERROR(DGET(DB_CASINGS,"Drillng_Event_Seq",$BB86:$BC87)),"",DGET(DB_CASINGS,"Drillng_Event_Seq",$BB86:$BC87)) -> 0 | E85: =IF(ISERROR(DGET(DB_CASINGS,"CASING_SHOE_DEPTH",$BB86:$BC87)),"",DGET(DB_CASINGS,"CASING_SHOE_DEPTH",$BB86:$BC87)) -> 20 | F85: =IF(ISERROR(DGET(DB_CASINGS,"CASING_SIZE",$BB86:$BC87)),"",DGET(DB_CASINGS,"CASING_SIZE",$BB86:$BC87)) -> 406.4 | G85: =IF(ISERROR(DGET(DB_CASINGS,"CASING_TYPE",$BB86:$BC87)),"",DGET(DB_CASINGS,"CASING_TYPE",$BB86:$BC87)) -> COND | H85: =IF(ISERROR(DGET(DB_CASINGS,"CASING_GRADE_CODE",$BB86:$BC87)),"",DGET(DB_CASINGS,"CASING_GRADE_CODE",$BB86:$BC87)) -> ASTM A252 GRADE 3 | I85: =IF(ISERROR(DGET(DB_CASINGS,"CASING_JOINT_QTY",$BB86:$BC87)),"",DGET(DB_CASINGS,"CASING_JOINT_QTY",$BB86:$BC87)) -> 2 | J85: =IF(ISERROR(DGET(DB_CASINGS,"CEMENT_VOL",$BB86:$BC87)),"",DGET(DB_CASINGS,"CEMENT_VOL",$BB86:$BC87)) -> 7 | K85: =IF(ISERROR(DGET(DB_CASINGS,"CASING_WEIGHT",$BB86:$BC87)),"",DGET(DB_CASINGS,"CASING_WEIGHT",$BB86:$BC87)) -> 62.64 | L85: =IF(ISERROR(DGET(DB_CASINGS,"CASING_COMMENTS",$BB86:$BC87)),"",DGET(DB_CASINGS,"CASING_COMMENTS",$BB86:$BC87)) ->  | BB85: =$BL$2 -> 49886 | BC85: =$BC83+1 -> 4 | BI85: Y:19 | BJ85: YADV_19 | BK85: 0 | BR85: YPRD_19
BB86: WA_NUM | BC86: Order | BD86: =IF(ISERROR(DGET(DB_CASINGS,"CASING_DATE",$BB86:$BC87)),"",DGET(DB_CASINGS,"CASING_DATE",$BB86:$BC87)) -> 20240229 | BI86: Y:20 | BJ86: YADV_20 | BK86: 0 | BR86: YPRD_20
BB87: =$BL$2 -> 49886 | BC87: =$BC85+1 -> 5 | BI87: A:13 | BJ87: ADV_FYE2013 | BK87: 0 | BQ87: =IF(SUM(BK87:BP87)=0,$BU$5,SUM(BK87:BP87)) -> 
BJ88: ADV_FYE2014 | BK88: 0
BJ89: ADV_FYE2015 | BK89: 0
BJ90: ADV_FYE2016 | BK90: 0
BJ91: ADV_FYE2017 | BK91: 0
BJ92: ADV_FYE2018 | BK92: 0
BJ93: ADV_FYE2019 | BK93: 0
BJ94: ADV_FYE2020 | BK94: 0
BJ95: ADV_FYE2021 | BK95: 0
BJ96: ADV_FYE2022 | BK96: 0
BJ97: ADV_FYE2023 | BK97: 0
BJ98: ADV_FYE2024 | BK98: 0
BJ99: ADV_FYE2025 | BK99: 9.032431569 | BQ99: 9.032431569
BJ100: ADV_FYE2026 | BK100: 4.446337455 | BQ100: 4.446337455
BJ101: ADV_FYE2027 | BK101: 0
BJ102: ADV_FYE2028 | BK102: 0 | BQ102: =IF(SUM(BK102:BP102)=0,$BU$5,SUM(BK102:BP102)) -> 

Sheet A_Word
A2: A Few Words (and Legal Stuff)
A4: The data presented in this workbook is publicly available from the British Columbia Energy Regulator (BCER) website (www.bc-er.ca). The BCER provides this data to industry and members of the public. We are not aware of any restrictions that the BCER has placed upon the use of its data, but the BCER should be appropriately credited when information from its website (or summarized in this workbook and accompanying Access database) is cited.
A8: We have accessed, assembled and (in some cases) processed the BCER data to present it in a readily accessible format. This workbook is provided without any representation or warranty that the information contained herein is complete, correct or current. We accept no legal liability for any actions taken or harm suffered in reliance upon the contents of this workbook or any associated MS Access database. We advise you to access data directly from the BCER website if you intend to use the data for commercial purposes.
A12: The data is current to the date specified in cell N2 of the Summary sheet. We understand that the data does not include any information that the BCER treats as confidential (in particular for experimental wells) until the confidentiality period has passed. We only present information provided on the BCER website and make no representation or warranty as to its completeness, correctness, currency or fitness for any particular purpose.
A16: For more information about this workbook and periodic data refreshes, please feel free to contact me at:
B20: Office@macauley.ca
A22: Thanks,
A23: George Macauley

Sheet Well_Names
A1: WA_NUM | B1: WELL_NAME | C1: OPERATOR | D1: Spud_Mon | E1: Rig_Rel_Mon | F1: First_Prod_Mon | G1: Area | H1: Area_DESC | I1: Form | J1: Form_DESC | K1: HORIZ_WELL | L1: GRID | M1: SURF_LAT_CALC | N1: SURF_LON_CALC
A2: 49886 | B2: TOURMALINE HZ TOWN C-G002-G/094-B-16 | C2: Tourmaline Oil Corp. | D2: 202408 | E2: 202404 | G2: 9022 | H2: NORTHERN MONTNEY | I2: 5000 | J2: MONTNEY | K2: HZ | M2: 57.396389 | N2: -123.681389

Sheet PRD_Profile_Gas
A1: WA_NUM | B1: FIRST_PROD_PERIOD | C1: MPRD_001 | D1: MPRD_002 | E1: MPRD_003 | F1: MPRD_004 | G1: MPRD_005 | H1: MPRD_006 | I1: MPRD_007 | J1: MPRD_008 | K1: MPRD_009 | L1: MPRD_010 | M1: MPRD_011 | N1: MPRD_012 | O1: MPRD_013 | P1: MPRD_014 | Q1: MPRD_015 | R1: MPRD_016 | S1: MPRD_017 | T1: MPRD_018 | U1: MPRD_019 | V1: MPRD_020 | W1: MPRD_021 | X1: MPRD_022 | Y1: MPRD_023 | Z1: MPRD_024 | AA1: MPRD_025 | AB1: MPRD_026 | AC1: MPRD_027 | AD1: MPRD_028 | AE1: MPRD_029 | AF1: MPRD_030 | AG1: MPRD_031 | AH1: MPRD_032 | AI1: MPRD_033 | AJ1: MPRD_034 | AK1: MPRD_035 | AL1: MPRD_036 | AM1: MPRD_037 | AN1: MPRD_038 | AO1: MPRD_039 | AP1: MPRD_040 | AQ1: MPRD_041 | AR1: MPRD_042 | AS1: MPRD_043 | AT1: MPRD_044 | AU1: MPRD_045 | AV1: MPRD_046 | AW1: MPRD_047 | AX1: MPRD_048 | AY1: MPRD_049 | AZ1: MPRD_050 | BA1: MPRD_051 | BB1: MPRD_052 | BC1: MPRD_053 | BD1: MPRD_054 | BE1: MPRD_055 | BF1: MPRD_056 | BG1: MPRD_057 | BH1: MPRD_058 | BI1: MPRD_059 | BJ1: MPRD_060 | BK1: YPRD_01 | BL1: YPRD_02 | BM1: YPRD_03 | BN1: YPRD_04 | BO1: YPRD_05 | BP1: YPRD_06 | BQ1: YPRD_07 | BR1: YPRD_08 | BS1: YPRD_09 | BT1: YPRD_10 | BU1: YPRD_11 | BV1: YPRD_12 | BW1: YPRD_13 | BX1: YPRD_14 | BY1: YPRD_15 | BZ1: YPRD_16 | CA1: YPRD_17 | CB1: YPRD_18 | CC1: YPRD_19 | CD1: YPRD_20 | CE1: PRD_FYE2012 | CF1: PRD_FYE2013 | CG1: PRD_FYE2014 | CH1: PRD_FYE2015 | CI1: PRD_FYE2016 | CJ1: PRD_FYE2017 | CK1: PRD_FYE2018 | CL1: PRD_FYE2019 | CM1: PRD_FYE2020 | CN1: PRD_FYE2021 | CO1: PRD_FYE2022 | CP1: PRD_FYE2023 | CQ1: PRD_FYE2024 | CR1: PRD_FYE2025 | CS1: PRD_FYE2026 | CT1: PRD_FYE2027 | CU1: PRD_FYE2028 | CV1: OIL_FYE2012 | CW1: OIL_FYE2013 | CX1: OIL_FYE2014 | CY1: OIL_FYE2015 | CZ1: OIL_FYE2016 | DA1: OIL_FYE2017 | DB1: OIL_FYE2018 | DC1: OIL_FYE2019 | DD1: OIL_FYE2020 | DE1: OIL_FYE2021 | DF1: OIL_FYE2022 | DG1: OIL_FYE2023 | DH1: OIL_FYE2024 | DI1: OIL_FYE2025 | DJ1: OIL_FYE2026 | DK1: OIL_FYE2027 | DL1: OIL_FYE2028 | DM1: CND_FYE2012 | DN1: CND_FYE2013 | DO1: CND_FYE2014 | DP1: CND_FYE2015 | DQ1: CND_FYE2016 | DR1: CND_FYE2017 | DS1: CND_FYE2018 | DT1: CND_FYE2019 | DU1: CND_FYE2020 | DV1: CND_FYE2021 | DW1: CND_FYE2022 | DX1: CND_FYE2023 | DY1: CND_FYE2024 | DZ1: CND_FYE2025 | EA1: CND_FYE2026 | EB1: CND_FYE2027 | EC1: CND_FYE2028
A2: 49886 | B2: 202408 | C2: 5979.8 | D2: 8849.4 | E2: 7872.3 | F2: 7009.2 | G2: 7370.8 | H2: 7888.8 | I2: 6536.3 | J2: 6805.9 | K2: 3581.1 | L2: 4601.1 | M2: 4102.9 | N2: 3914.4 | O2: 3689.5 | P2: 3331.4 | Q2: 3295.4 | R2: 3058.5 | BK2: 74512 | BL2: 13374.8 | CR2: 58312.5 | CS2: 29574.3 | DI2: 0 | DJ2: 0 | DZ2: 33 | EA2: 0

Sheet ADV_Profile_Gas
A1: WA_NUM | B1: UWI | C1: AREA_CODE | D1: FORMTN_CODE | E1: UWI_Order | F1: FIRST_PROD_PERIOD | G1: MADV_001 | H1: MADV_002 | I1: MADV_003 | J1: MADV_004 | K1: MADV_005 | L1: MADV_006 | M1: MADV_007 | N1: MADV_008 | O1: MADV_009 | P1: MADV_010 | Q1: MADV_011 | R1: MADV_012 | S1: MADV_013 | T1: MADV_014 | U1: MADV_015 | V1: MADV_016 | W1: MADV_017 | X1: MADV_018 | Y1: MADV_019 | Z1: MADV_020 | AA1: MADV_021 | AB1: MADV_022 | AC1: MADV_023 | AD1: MADV_024 | AE1: MADV_025 | AF1: MADV_026 | AG1: MADV_027 | AH1: MADV_028 | AI1: MADV_029 | AJ1: MADV_030 | AK1: MADV_031 | AL1: MADV_032 | AM1: MADV_033 | AN1: MADV_034 | AO1: MADV_035 | AP1: MADV_036 | AQ1: MADV_037 | AR1: MADV_038 | AS1: MADV_039 | AT1: MADV_040 | AU1: MADV_041 | AV1: MADV_042 | AW1: MADV_043 | AX1: MADV_044 | AY1: MADV_045 | AZ1: MADV_046 | BA1: MADV_047 | BB1: MADV_048 | BC1: MADV_049 | BD1: MADV_050 | BE1: MADV_051 | BF1: MADV_052 | BG1: MADV_053 | BH1: MADV_054 | BI1: MADV_055 | BJ1: MADV_056 | BK1: MADV_057 | BL1: MADV_058 | BM1: MADV_059 | BN1: MADV_060 | BO1: YADV_01 | BP1: YADV_02 | BQ1: YADV_03 | BR1: YADV_04 | BS1: YADV_05 | BT1: YADV_06 | BU1: YADV_07 | BV1: YADV_08 | BW1: YADV_09 | BX1: YADV_10 | BY1: YADV_11 | BZ1: YADV_12 | CA1: YADV_13 | CB1: YADV_14 | CC1: YADV_15 | CD1: YADV_16 | CE1: YADV_17 | CF1: YADV_18 | CG1: YADV_19 | CH1: YADV_20 | CI1: ADV_FYE2012 | CJ1: ADV_FYE2013 | CK1: ADV_FYE2014 | CL1: ADV_FYE2015 | CM1: ADV_FYE2016 | CN1: ADV_FYE2017 | CO1: ADV_FYE2018 | CP1: ADV_FYE2019 | CQ1: ADV_FYE2020 | CR1: ADV_FYE2021 | CS1: ADV_FYE2022 | CT1: ADV_FYE2023 | CU1: ADV_FYE2024 | CV1: ADV_FYE2025 | CW1: ADV_FYE2026 | CX1: ADV_FYE2027 | CY1: ADV_FYE2028
A2: 49886 | B2: 207B090A094B1600 | C2: 9022 | D2: 5000 | E2: 1 | F2: 202408 | G2: 308.237 | H2: 294.98 | I2: 262.41 | J2: 233.64 | K2: 245.693 | L2: 262.086 | M2: 234.276 | N2: 223.144 | O2: 166.563 | P2: 148.423 | Q2: 137.681 | R2: 128.341 | S2: 119.016 | T2: 111.047 | U2: 106.303 | V2: 101.95 | W2: 0 | X2: 0 | Y2: 0 | Z2: 0 | AA2: 0 | AB2: 0 | AC2: 0 | AD2: 0 | AE2: 0 | AF2: 0 | AG2: 0 | AH2: 0 | AI2: 0 | AJ2: 0 | AK2: 0 | AL2: 0 | AM2: 0 | AN2: 0 | AO2: 0 | AP2: 0 | AQ2: 0 | AR2: 0 | AS2: 0 | AT2: 0 | AU2: 0 | AV2: 0 | AW2: 0 | AX2: 0 | AY2: 0 | AZ2: 0 | BA2: 0 | BB2: 0 | BC2: 0 | BD2: 0 | BE2: 0 | BF2: 0 | BG2: 0 | BH2: 0 | BI2: 0 | BJ2: 0 | BK2: 0 | BL2: 0 | BM2: 0 | BN2: 0 | BO2: 218.703 | BP2: 109.63 | BQ2: 0 | BR2: 0 | BS2: 0 | BT2: 0 | BU2: 0 | BV2: 0 | BW2: 0 | BX2: 0 | BY2: 0 | BZ2: 0 | CA2: 0 | CB2: 0 | CC2: 0 | CD2: 0 | CE2: 0 | CF2: 0 | CG2: 0 | CH2: 0 | CI2: 0 | CJ2: 0 | CK2: 0 | CL2: 0 | CM2: 0 | CN2: 0 | CO2: 0 | CP2: 0 | CQ2: 0 | CR2: 0 | CS2: 0 | CT2: 0 | CU2: 0 | CV2: 255.869 | CW2: 125.955 | CX2: 0 | CY2: 0

Sheet FRAC_Summary
A1: WA_NUM | B1: CO2_TONNES | C1: NUM_CO2_FRACS | D1: SLH_TONNES | E1: NUM_SLH_FRACS | F1: SLW_TONNES | G1: NUM_SLW_FRACS | H1: DGL_TONNES | I1: NUM_DGL_FRACS | J1: NES_TONNES | K1: NUM_NES_FRACS

Sheet DIR_SURVEY
A1: WA_NUM | B1: TOTAL_M_DEPTH | C1: MAX_TV_DEPTH
A2: 49886 | B2: 4379 | C2: 1778.06

Sheet Drilling_Events
A1: WA_NUM | B1: CLASS | C1: SPUD_DATE | D1: RIG_REL_DATE | E1: REENTRY_DATE
A2: 49886 | B2: DV | C2: 20240410 | D2: 20240421

Sheet FRAC_Descriptions
A1: UWI | B1: Area_code | C1: Formtn_code | D1: Pool_seq | E1: Wa_num | F1: Compltn_Order | G1: Compltn_date | H1: Compltn_summry

Sheet GAS_ANAL
A1: Wa_num | B1: Uwi | C1: Area_Code | D1: Formtn_code | E1: Sample_date | F1: Sample_Order | G1: H2_fractn | H1: Helium_fractn | I1: Co2_fractn | J1: H2s_fractn | K1: N2_fractn | L1: C1_fractn | M1: C2_fractn | N1: C3_fractn | O1: Ic4_fractn | P1: Nc4_fractn | Q1: Ic5_fractn | R1: Nc5_fractn | S1: C6_fractn | T1: C7_fractn | U1: C8_fractn | V1: C9_fractn | W1: C10_fractn | X1: Molclr_wt_of_c7 | Y1: C5_ml_mol | Z1: Molclr_wt_of_gas
A2: 49886 | B2: 207B090A094B1600 | C2: 9022 | D2: 5000 | E2: 20240815 | F2: 1 | G2: 0.0001 | H2: 0 | I2: 0.0014 | J2: 0 | K2: 0.0014 | L2: 0.8296 | M2: 0.0983 | N2: 0.037 | O2: 0.0074 | P2: 0.0111 | Q2: 0.0037 | R2: 0.0036 | S2: 0.0034 | T2: 0.003 | U2: 0 | V2: 0 | W2: 0 | X2: 107.7 | Z2: 20.2

Sheet ABANDON
A1: WA_NUM | B1: UWI | C1: ABANDONMENT_DATE | D1: DRILLNG_EVENT_SEQ | E1: PLUG_NUM | F1: PLUG_TYPE | G1: TOP_DEPTH | H1: BASE_DEPTH | I1: CEMENT_VOL | J1: CEMENT_GRADE | K1: BRIDGE_PLUG_SET_DEPTH | L1: REMARKS | M1: ORDER

Sheet CASINGS
A1: WA_NUM | B1: UWI | C1: DRILLNG_EVENT_SEQ | D1: CASING_SHOE_DEPTH | E1: CASING_GRADE_CODE | F1: CASING_SIZE | G1: CEMENT_CLASS_CODE | H1: CEMENT_GRADE | I1: CASING_LINER_TOP_DEPTH | J1: CASING_LINER_BASE_DEPTH | K1: CASING_TYPE | L1: CASING_JOINT_QTY | M1: CASING_COMMENTS | N1: CEMENT_VOL | O1: CEMENT_RETURNS_TO_SURF | P1: CASING_WEIGHT | Q1: CASING_DATE | R1: ORDER
A2: 49886 | B2: 207B090A094B1600 | C2: 0 | D2: 4360.54 | E2: TN110S | F2: 114.3 | G2: G | K2: PROD | L2: 308 | N2: 5.2 | P2: 22.47 | Q2: 20240421 | R2: 1
A3: 49886 | B3: 207B090A094B1600 | C3: 0 | D3: 4360.54 | E3: TN110S | F3: 114.3 | G3: A | K3: PROD | L3: 308 | N3: 22 | P3: 22.47 | Q3: 20240421 | R3: 2
A4: 49886 | B4: 207B090A094B1600 | C4: 0 | D4: 4360.54 | E4: TN110S | F4: 114.3 | G4: UNC | K4: PROD | L4: 308 | P4: 22.47 | Q4: 20240421 | R4: 3
A5: 49886 | B5: 207B090A094B1600 | C5: 0 | D5: 616.38 | E5: L80-IC | F5: 177.8 | G5: C | K5: SURF | L5: 43 | N5: 26 | P5: 34.23 | Q5: 20240411 | R5: 4
A6: 49886 | B6: 207B090A094B1600 | C6: 0 | D6: 20 | E6: ASTM A252 GRADE 3 | F6: 406.4 | G6: C | K6: COND | L6: 2 | N6: 7 | P6: 62.64 | Q6: 20240229 | R6: 5

Sheet PAY_ZONE
A1: WA_NUM | B1: UWI | C1: PAY_TYPE | D1: MEAS_TOP_PAY_DEPTH | E1: MEAS_BASE_PAY_DEPTH | F1: POROSITY | G1: SATURATION | H1: LITHOLOGY | I1: POSITION
A2: 49886 | B2: 207B090A094B1600 | D2: 1967.4 | E2: 4352 | I2: 1

Sheet CODES
A1: DB_AREA_CODE
A2: AREA_CODE | B2: AREA_DESC | D2: FORM_CODE | E2: FORM_DESC
A3: 0 | B3: CLIENT CLASSIFIED | D3: 40 | E3: CENOZOIC
A4: 50 | B4: ADSETT | D4: 50 | E4: QUATERNARY
A5: 100 | B5: AIRPORT | D5: 60 | E5: PLEISTOCENE
A6: 200 | B6: AITKEN CREEK | D6: 70 | E6: CAPE BALL
A7: 210 | B7: AITKEN CREEK NORTH | D7: 75 | E7: PRE-TERTIARY
A8: 250 | B8: ALCES | D8: 100 | E8: TERTIARY
A9: 320 | B9: ALTARES | D9: 105 | E9: BOUNDARY BAY
A10: 350 | B10: ATTACHIE | D10: 108 | E10: MUD BAY
A11: 380 | B11: BEAR FLAT | D11: 120 | E11: SKONUN
A12: 400 | B12: BEATTON RIVER | D12: 130 | E12: MASSET
A13: 600 | B13: BEATTON RIVER WEST | D13: 140 | E13: KISHENEHN
A14: 700 | B14: BEAVERDAM | D14: 150 | E14: CHUCKANUT
A15: 740 | B15: BEAVER RIVER | D15: 175 | E15: MESOZOIC
A16: 760 | B16: BEAVERTAIL | D16: 180 | E16: CRETACEOUS
A17: 800 | B17: BEG | D17: 200 | E17: UPPER CRETACEOUS
A18: 1000 | B18: BEG WEST | D18: 500 | E18: NANAMIO GROUP
A19: 1200 | B19: BERNADET | D19: 600 | E19: GABRIOLA
A20: 1260 | B20: BIRCH | D20: 610 | E20: SPRAY
A21: 1280 | B21: BIRLEY CREEK | D21: 620 | E21: GEOFFREY
A22: 1300 | B22: BIVOUAC | D22: 630 | E22: NORTHUMBERLAND
A23: 1350 | B23: BLACK CREEK | D23: 640 | E23: DE COURCY
A24: 1360 | B24: BLAIR | D24: 650 | E24: CEDAR DISTRICT
A25: 1400 | B25: BLUEBERRY | D25: 660 | E25: PROTECTION
A26: 1600 | B26: BLUEBERRY EAST | D26: 670 | E26: NEWCASTLE
A27: 1800 | B27: BLUEBERRY WEST | D27: 673 | E27: DOUGLAS COAL
A28: 1880 | B28: BOUDREAU | D28: 675 | E28: PENDER
A29: 1900 | B29: BOUGIE | D29: 680 | E29: EXTENSION
A30: 1950 | B30: BOULDER | D30: 690 | E30: EAST WELLINGTON
A31: 2000 | B31: BOUNDARY LAKE | D31: 700 | E31: HASLAM
A32: 2020 | B32: BOUNDARY LAKE NORTH | D32: 710 | E32: COMOX
A33: 2100 | B33: BRASSEY | D33: 720 | E33: BENSON
A34: 2150 | B34: BRAZION | D34: 1300 | E34: WAPITI
A35: 2160 | B35: BRIAR RIDGE | D35: 1350 | E35: BELLY RIVER
A36: 2200 | B36: BUBBLES | D36: 1360 | E36: WAPIABI
A37: 2240 | B37: BUBBLES NORTH | D37: 1365 | E37: PUSKWASKAU
A38: 2300 | B38: BUCKINGHORSE | D38: 1368 | E38: CHINOOK
A39: 2400 | B39: BUICK CREEK | D39: 1380 | E39: BAD HEART
A40: 2600 | B40: UNKNOWN - REMOVE ASSOC. POOL | D40: 1390 | E40: MUSKIKI
A41: 2700 | B41: BUICK CREEK NORTH | D41: 1398 | E41: CARDIUM ZONE
A42: 2800 | B42: BUICK CREEK WEST | D42: 1400 | E42: CARDIUM SAND
A43: 2810 | B43: BULLDOG | D43: 1405 | E43: BLACKSTONE
A44: 2820 | B44: BULRUSH | D44: 1410 | E44: KASKAPAU
A45: 2840 | B45: BULRUSH EAST | D45: 1411 | E45: SECOND WHITE SPECKLED SHALE
A46: 2850 | B46: BURNT RIVER | D46: 1412 | E46: FIRST PETROLIFEROUS SHALE
A47: 2852 | B47: MIST MOUNTAIN | D47: 1414 | E47: SECOND PETROLIFEROUS SHALE
A48: 2860 | B48: BULLMOOSE | D48: 1415 | E48: POUCE COUPE
A49: 2865 | B49: BULLMOOSE WEST | D49: 1420 | E49: DOE CREEK
A50: 2870 | B50: BUTLER | D50: 1450 | E50: FORT NELSON
A51: 2900 | B51: CABIN | D51: 1490 | E51: QUEEN CHARLOTTE GROUP
A52: 2920 | B52: CACHE CREEK | D52: 1492 | E52: HONNA
A53: 2940 | B53: CARIBOU | D53: 1494 | E53: SKIDEGATE
A54: 2960 | B54: CECIL LAKE | D54: 1500 | E54: DUNVEGAN
A55: 2985 | B55: CHINCHAGA RIVER | D55: 1520 | E55: CROWSNEST VOLCANICS
A56: 2990 | B56: CHOWADE | D56: 1530 | E56: FT ST JOHN
A57: 3200 | B57: CLARKE LAKE | D57: 1600 | E57: HAIDA
A58: 3230 | B58: COMMOTION | D58: 1660 | E58: SULLY
A59: 3240 | B59: CONROY CREEK | D59: 1680 | E59: SIKANNI
A60: 3250 | B60: CROW RIVER | D60: 1700 | E60: SHAFTESBURY
A61: 3260 | B61: CRUSH | D61: 1705 | E61: LEPINE
A62: 3300 | B62: CURRANT | D62: 1710 | E62: GOODRICH
A63: 3320 | B63: CURRANT WEST | D63: 1713 | E63: BASE OF FISH SCALES
A64: 3340 | B64: CUTBANK | D64: 1715 | E64: HASLER
A65: 3360 | B65: CYPRESS | D65: 1720 | E65: BUCKINGHORSE
A66: 3380 | B66: DAHL | D66: 1721 | E66: BOUGIE
A67: 3390 | B67: DAIBER | D67: 1723 | E67: BOULDER CREEK
A68: 3400 | B68: DAWSON CREEK | D68: 1724 | E68: HULCROSS
A69: 3410 | B69: DESAN | D69: 1725 | E69: GATES
A70: 3420 | B70: DILLY | D70: 1730 | E70: SCATTER
A71: 3425 | B71: DOE | D71: 1740 | E71: GARBUTT
A72: 3426 | B72: DOIG RAPIDS | D72: 1741 | E72: RADIOACTIVE ZONE
A73: 3427 | B73: DONIS | D73: 1800 | E73: BLAIRMORE
A74: 3430 | B74: DRAKE | D74: 1850 | E74: COMMOTION
A75: 3440 | B75: EAGLE | D75: 1870 | E75: MOOSEBAR
A76: 3445 | B76: EAGLE WEST | D76: 2000 | E76: PADDY
A77: 3450 | B77: EKWAN | D77: 2010 | E77: PADDY- CADOTTE
A78: 3453 | B78: ELBOW CREEK | D78: 2200 | E78: CADOTTE
A79: 3455 | B79: ELLEH | D79: 2220 | E79: HARMON
A80: 3457 | B80: ELLEH NORTH | D80: 2330 | E80: PEACE RIVER
A81: 3460 | B81: ELM | D81: 2350 | E81: SPIRIT RIVER
A82: 3465 | B82: ESKAI | D82: 2400 | E82: NOTIKEWIN
A83: 3470 | B83: ETTHITHUN | D83: 2500 | E83: FALHER
A84: 3480 | B84: EVIE BANK | D84: 2505 | E84: FALHER A
A85: 3490 | B85: FEDERAL | D85: 2510 | E85: FALHER B
A86: 3500 | B86: FARRELL CREEK (SEE KOBES) | D86: 2515 | E86: FALHER C
A87: 3510 | B87: FARRELL CREEK WEST | D87: 2520 | E87: FALHER D
A88: 3515 | B88: FIR CREEK | D88: 2525 | E88: FOURTH COAL MEASURE
A89: 3520 | B89: FIREBIRD | D89: 2530 | E89: FALHER E
A90: 3540 | B90: FIREWEED | D90: 2535 | E90: FALHER SAND
A91: 3560 | B91: FLATROCK | D91: 2540 | E91: FALHER F
A92: 3580 | B92: FLATROCK WEST | D92: 2545 | E92: FALHER G
A93: 3600 | B93: FORT ST JOHN | D93: 2550 | E93: WILRICH
A94: 4000 | B94: FORT ST JOHN SOUTHEAST | D94: 2575 | E94: HOT SHALE
A95: 4100 | B95: GOOSE | D95: 2600 | E95: BLUESKY
A96: 4150 | B96: GOPHER | D96: 2625 | E96: BASAL BLUESKY
A97: 4200 | B97: GOTE | D97: 2630 | E97: BLUESKY-GETHING
A98: 4300 | B98: GRAHAM | D98: 2640 | E98: BLUESKY-GETHING-DETRITAL
A99: 4350 | B99: GRASSY | D99: 2650 | E99: DETRITAL
A100: 4370 | B100: GREEN CREEK | D100: 2690 | E100: BULLHEAD
A101: 4375 | B101: GREENHILLS | D101: 2692 | E101: LOWER BLAIRMORE
A102: 4380 | B102: GRIZZLY NORTH | D102: 2700 | E102: GETHING
A103: 4385 | B103: GRIZZLY SOUTH | D103: 2703 | E103: AITKEN CREEK
A104: 4390 | B104: GROUNDBIRCH | D104: 2705 | E104: LOWER BULLHEAD
A105: 4400 | B105: GUNDY CREEK | D105: 2710 | E105: LOWER GETHING
A106: 4460 | B106: GUNDY CREEK WEST | D106: 2720 | E106: BASAL GETHING
A107: 4470 | B107: GUNNELL CREEK | D107: 2750 | E107: LONG ARM
A108: 4485 | B108: GUTAH | D108: 2775 | E108: LOWER GETHING/UPPER DUNLEVY
A109: 4500 | B109: GWILLIM | D109: 2785 | E109: GETHING-BALDONNEL
A110: 4600 | B110: HALFWAY | D110: 2800 | E110: CADOMIN
A111: 4650 | B111: HAY RIVER | D111: 2805 | E111: CHINKEH
A112: 4700 | B112: HELMET | D112: 2810 | E112: JACKASS MOUNTAIN
A113: 4720 | B113: HELMET NORTH (SEE HELMET) | D113: 2820 | E113: DALHOUSIE
A114: 4780 | B114: HIDING CREEK | D114: 2830 | E114: BASAL CRETACEOUS SANDSTONE
A115: 4800 | B115: HIGHHAT MOUNTAIN | D115: 2835 | E115: MINNES
A116: 4850 | B116: HOFFARD | D116: 2836 | E116: BICKFORD
A117: 4860 | B117: HOSSITL | D117: 2837 | E117: MONACH
A118: 4875 | B118: HUNTER | D118: 2838 | E118: BEATTIE PEAKS
A119: 4900 | B119: INGA | D119: 2839 | E119: MONTIETH
A120: 4920 | B120: INGA NORTH | D120: 2840 | E120: KOOTNEY
A121: 4925 | B121: INGA SOUTH | D121: 2845 | E121: MORRISSEY
A122: 4975 | B122: JACKPINE | D122: 2849 | E122: ELK
A123: 5000 | B123: JEDNEY | D123: 2850 | E123: NIKANASSIN
A124: 5020 | B124: JEDNEY WEST | D124: 2852 | E124: MIST MOUNTAIN
A125: 5100 | B125: JULIENNE CREEK | D125: 2853 | E125: MOOSE MOUNTAIN MEMBER
A126: 5110 | B126: JULIENNE CREEK NORTH | D126: 2855 | E126: CURRIER
A127: 5120 | B127: JULIENNE CREEK SOUTH | D127: 2890 | E127: BUICK CREEK
A128: 5150 | B128: JUNIOR | D128: 2900 | E128: DUNLEVY
A129: 5160 | B129: KAHNTAH RIVER | D129: 2910 | E129: LOWER DUNLEVY
A130: 5170 | B130: KELLY | D130: 2920 | E130: JURASSIC
A131: 5180 | B131: KLUA | D131: 2930 | E131: BOWSER LAKE GROUP
A132: 5200 | B132: KOBES | D132: 2950 | E132: FERNIE
A133: 5230 | B133: KOBES WEST | D133: 2960 | E133: FIRST BLACK SHALE
A134: 5300 | B134: KOMIE | D134: 2970 | E134: SECOND BLACK SHALE
A135: 5400 | B135: KOTCHO LAKE | D135: 3000 | E135: PASSAGE BEDS
A136: 5420 | B136: KOTCHO LAKE EAST | D136: 3010 | E136: GREEN BEDS
A137: 5480 | B137: KYKLO | D137: 3020 | E137: GREY BEDS
A138: 5500 | B138: LADYFERN | D138: 3030 | E138: ROCK CREEK
A139: 5540 | B139: LAGARDE | D139: 3040 | E139: POKER CHIP
A140: 5560 | B140: LAPP | D140: 3070 | E140: HAZELTON
A141: 5600 | B141: LAPRISE CREEK | D141: 3200 | E141: NORDEGG
A142: 5800 | B142: LAPRISE CREEK WEST | D142: 3220 | E142: RITCHIE
A143: 5810 | B143: LILY LAKE | D143: 3900 | E143: YAKOUN
A144: 5840 | B144: LOUISE | D144: 3990 | E144: MAUDE
A145: 5845 | B145: MATHESON | D145: 4000 | E145: TRIASSIC
A146: 5850 | B146: MARTIN | D146: 4040 | E146: NORDEGG-BALDONNEL
A147: 5852 | B147: MAXHAMISH LAKE | D147: 4046 | E147: BOCOCK
A148: 5854 | B148: MEIKLE CREEK (SEE: GWILLIM) | D148: 4050 | E148: PARDONET
A149: 5855 | B149: MEL | D149: 4060 | E149: PARDONET-BALDONNEL
A150: 5858 | B150: MERCURY | D150: 4090 | E150: SCHOOLER CREEK
A151: 5860 | B151: MICA | D151: 4100 | E151: BALDONNEL
A152: 5870 | B152: MIDWINTER (MOST IN HELMET) | D152: 4150 | E152: BALDONNEL/UPPER CHARLIE LAKE
A153: 5880 | B153: MIKE | D153: 4200 | E153: TAKLA
A154: 6000 | B154: MILLIGAN CREEK | D154: 4500 | E154: CHARLIE LAKE
A155: 6020 | B155: MILLIGAN CREEK WEST | D155: 4505 | E155: FIRST BROWN MARKER
A156: 6030 | B156: MILO | D156: 4507 | E156: OWL
A157: 6100 | B157: MOBERLY LAKE | D157: 4510 | E157: SIPHON
A158: 6140 | B158: MONIAS | D158: 4511 | E158: SIPHON DISCONFORMITY
A159: 6200 | B159: MONTNEY | D159: 4512 | E159: TWO RIVERS
A160: 6210 | B160: MOOSE | D160: 4520 | E160: CECIL
A161: 6220 | B161: MURRAY | D161: 4524 | E161: RED CREEK
A162: 6230 | B162: MUSKRAT | D162: 4530 | E162: NANCY
A163: 6250 | B163: MUSKWA RIVER (SEE MILO) | D163: 4531 | E163: FIRST GREEN MARKER
A164: 6400 | B164: NIG CREEK | D164: 4532 | E164: SECOND BROWN MARKER
A165: 6410 | B165: NIG CREEK NORTH | D165: 4533 | E165: FLATROCK
A166: 6420 | B166: NIG CREEK WEST | D166: 4534 | E166: BOUNDARY DISCONFORMITY
A167: 6430 | B167: NOEL | D167: 4535 | E167: BOUNDARY LAKE
A168: 6440 | B168: NORTH PINE | D168: 4536 | E168: BASAL BOUNDARY
A169: 6460 | B169: OAK | D169: 4537 | E169: PINK MARKER
A170: 6480 | B170: OJAY | D170: 4538 | E170: YELLOW MARKER
A171: 6485 | B171: OOTLA | D171: 4539 | E171: FIRST ORANGE MARKER
A172: 6490 | B172: OSBORN | D172: 4540 | E172: COPLIN
A173: 6500 | B173: OSPREY | D173: 4541 | E173: COPLIN UNCONFORMITY
A174: 6530 | B174: OWL | D174: 4542 | E174: SEPTIMUS
A175: 6560 | B175: PARADISE | D175: 4545 | E175: MICA
A176: 6600 | B176: PARKLAND | D176: 4547 | E176: LA GLACE
A177: 6800 | B177: PEEJAY | D177: 4550 | E177: KOBES
A178: 7000 | B178: PEEJAY WEST | D178: 4560 | E178: BLUEBERRY
A179: 7020 | B179: PEGGO-PESH (WAS PEGGO 1996) | D179: 4570 | E179: FARRELL
A180: 7030 | B180: PESH (SEE PEGGO-PESH) | D180: 4571 | E180: GROUNDBIRCH
A181: 7200 | B181: PETITOT RIVER | D181: 4575 | E181: INGA
A182: 7250 | B182: PICKELL | D182: 4578 | E182: COFFEE CREEK
A183: 7265 | B183: PINTAIL | D183: 4580 | E183: NORTH PINE
A184: 7275 | B184: PLUTO | D184: 4582 | E184: BEAR FLAT
A185: 7300 | B185: POCKETKNIFE | D185: 4585 | E185: WILDER
A186: 7320 | B186: PORTAGE | D186: 4590 | E186: PINGEL
A187: 7340 | B187: PRESPATOU | D187: 4591 | E187: PURPLE MARKER
A188: 7400 | B188: RED CREEK | D188: 4592 | E188: SECOND ORANGE MARKER
A189: 7410 | B189: RED CREEK NORTH | D189: 4595 | E189: KERN
A190: 7430 | B190: RED DEER | D190: 4596 | E190: TEA CREEK MEMBER
A191: 7440 | B191: REDEYE | D191: 4600 | E191: TRIASSIC VOLCANIC BASEMENT
A192: 7500 | B192: REDWILLOW RIVER | D192: 4605 | E192: SECOND GREEN MARKER
A193: 7600 | B193: RIGEL | D193: 4608 | E193: TRUTCH CREEK
A194: 7620 | B194: RIGEL EAST | D194: 4609 | E194: LIMESTONE A BED
A195: 7660 | B195: RING | D195: 4610 | E195: A MARKER/BASE OF LIME
A196: 7720 | B196: ROGER | D196: 4612 | E196: LOWER CHARLIE LAKE SANDS
A197: 7730 | B197: ROMEO (SEE SIERRA) | D197: 4615 | E197: B ANHYDRITE MARKER
A198: 7740 | B198: SAHTANEH | D198: 4700 | E198: ARTEX
A199: 7745 | B199: SATURN | D199: 4702 | E199: BASE OF ARTEX
A200: 7750 | B200: SEPTIMUS | D200: 4705 | E200: DALE MEMBER
... 578 more rows

Sheet DBS_Location
B1: Location of BCER Source Database | AG1: Source Database | AH1: =$E$3&IF(AND(RIGHT($E$3,1)<>"\",RIGHT($E$3,1)<>"/"),"\","")&$E$5 -> c:\users\offic\Downloads\DBS_BCER_Data_Most_Recent.accdb
D2: Source Database | AG2: Source Database | AH2: =$E$9&IF(AND(RIGHT($E$9,1)<>"\",RIGHT($E$9,1)<>"/"),"\","")&$E$11 -> \ | BA2: Trial Version - Not Registered | BY2: Ent_Name | BZ2: Ent_ID
D3: Directory | E3: c:\users\offic\Downloads\ | BY3: =IF(#REF!="","",#REF!) ->  | BZ3: =IF(#REF!="","",#REF!) -> 
BY4: =IF(#REF!="","",#REF!) ->  | BZ4: =IF(#REF!="","",#REF!) -> 
D5: Name | E5: DBS_BCER_Data_Most_Recent.accdb | AG5: OC | BA5: Trial Version - Not Registered | BY5: =IF(#REF!="","",#REF!) ->  | BZ5: =IF(#REF!="","",#REF!) -> 
BY6: =IF(#REF!="","",#REF!) ->  | BZ6: =IF(#REF!="","",#REF!) -> 
BY7: =IF(#REF!="","",#REF!) ->  | BZ7: =IF(#REF!="","",#REF!) -> 
BY8: =IF(#REF!="","",#REF!) ->  | BZ8: =IF(#REF!="","",#REF!) -> 
BY9: =IF(#REF!="","",#REF!) ->  | BZ9: =IF(#REF!="","",#REF!) -> 
BY10: =IF(#REF!="","",#REF!) ->  | BZ10: =IF(#REF!="","",#REF!) -> 
BY11: =IF(#REF!="","",#REF!) ->  | BZ11: =IF(#REF!="","",#REF!) -> 
BY12: =IF(#REF!="","",#REF!) ->  | BZ12: =IF(#REF!="","",#REF!) -> 
BY13: =IF(#REF!="","",#REF!) ->  | BZ13: =IF(#REF!="","",#REF!) -> 
BY14: =IF(#REF!="","",#REF!) ->  | BZ14: =IF(#REF!="","",#REF!) -> 
BY15: =IF(#REF!="","",#REF!) ->  | BZ15: =IF(#REF!="","",#REF!) -> 
BY16: =IF(#REF!="","",#REF!) ->  | BZ16: =IF(#REF!="","",#REF!) -> 
BY17: =IF(#REF!="","",#REF!) ->  | BZ17: =IF(#REF!="","",#REF!) -> 
BY18: =IF(#REF!="","",#REF!) ->  | BZ18: =IF(#REF!="","",#REF!) -> 
BY19: =IF(#REF!="","",#REF!) ->  | BZ19: =IF(#REF!="","",#REF!) -> 
BY20: =IF(#REF!="","",#REF!) ->  | BZ20: =IF(#REF!="","",#REF!) -> 
BY21: =IF(#REF!="","",#REF!) ->  | BZ21: =IF(#REF!="","",#REF!) -> 
BY22: =IF(#REF!="","",#REF!) ->  | BZ22: =IF(#REF!="","",#REF!) -> 
BY23: =IF(#REF!="","",#REF!) ->  | BZ23: =IF(#REF!="","",#REF!) -> 
BY24: =IF(#REF!="","",#REF!) ->  | BZ24: =IF(#REF!="","",#REF!) -> 
BY25: =IF(#REF!="","",#REF!) ->  | BZ25: =IF(#REF!="","",#REF!) -> 
BY26: =IF(#REF!="","",#REF!) ->  | BZ26: =IF(#REF!="","",#REF!) -> 
BY27: =IF(#REF!="","",#REF!) ->  | BZ27: =IF(#REF!="","",#REF!) -> 
BY28: =IF(#REF!="","",#REF!) ->  | BZ28: =IF(#REF!="","",#REF!) -> 
BY29: =IF(#REF!="","",#REF!) ->  | BZ29: =IF(#REF!="","",#REF!) -> 
BY30: =IF(#REF!="","",#REF!) ->  | BZ30: =IF(#REF!="","",#REF!) -> 
BY31: =IF(#REF!="","",#REF!) ->  | BZ31: =IF(#REF!="","",#REF!) -> 
BY32: =IF(#REF!="","",#REF!) ->  | BZ32: =IF(#REF!="","",#REF!) -> 
BY33: =IF(#REF!="","",#REF!) ->  | BZ33: =IF(#REF!="","",#REF!) -> 
BY34: =IF(#REF!="","",#REF!) ->  | BZ34: =IF(#REF!="","",#REF!) -> 
BY35: =IF(#REF!="","",#REF!) ->  | BZ35: =IF(#REF!="","",#REF!) -> 
BY36: =IF(#REF!="","",#REF!) ->  | BZ36: =IF(#REF!="","",#REF!) -> 
BY37: =IF(#REF!="","",#REF!) ->  | BZ37: =IF(#REF!="","",#REF!) -> 
BY38: =IF(#REF!="","",#REF!) ->  | BZ38: =IF(#REF!="","",#REF!) -> 
BY39: =IF(#REF!="","",#REF!) ->  | BZ39: =IF(#REF!="","",#REF!) -> 
BY40: =IF(#REF!="","",#REF!) ->  | BZ40: =IF(#REF!="","",#REF!) -> 
BY41: =IF(#REF!="","",#REF!) ->  | BZ41: =IF(#REF!="","",#REF!) -> 
BY42: =IF(#REF!="","",#REF!) ->  | BZ42: =IF(#REF!="","",#REF!) -> 
BY43: =IF(#REF!="","",#REF!) ->  | BZ43: =IF(#REF!="","",#REF!) -> 
BY44: =IF(#REF!="","",#REF!) ->  | BZ44: =IF(#REF!="","",#REF!) -> 
BY45: =IF(#REF!="","",#REF!) ->  | BZ45: =IF(#REF!="","",#REF!) -> 
BY46: =IF(#REF!="","",#REF!) ->  | BZ46: =IF(#REF!="","",#REF!) -> 
BY47: =IF(#REF!="","",#REF!) ->  | BZ47: =IF(#REF!="","",#REF!) -> 
BY48: =IF(#REF!="","",#REF!) ->  | BZ48: =IF(#REF!="","",#REF!) -> 
BY49: =IF(#REF!="","",#REF!) ->  | BZ49: =IF(#REF!="","",#REF!) -> 
BY50: =IF(#REF!="","",#REF!) ->  | BZ50: =IF(#REF!="","",#REF!) -> 
BY51: =IF(#REF!="","",#REF!) ->  | BZ51: =IF(#REF!="","",#REF!) -> 
BY52: =IF(#REF!="","",#REF!) ->  | BZ52: =IF(#REF!="","",#REF!) -> 
BY53: =IF(#REF!="","",#REF!) ->  | BZ53: =IF(#REF!="","",#REF!) -> 
BY54: =IF(#REF!="","",#REF!) ->  | BZ54: =IF(#REF!="","",#REF!) -> 
BY55: =IF(#REF!="","",#REF!) ->  | BZ55: =IF(#REF!="","",#REF!) -> 
BY56: =IF(#REF!="","",#REF!) ->  | BZ56: =IF(#REF!="","",#REF!) -> 
BY57: =IF(#REF!="","",#REF!) ->  | BZ57: =IF(#REF!="","",#REF!) -> 
BY58: =IF(#REF!="","",#REF!) ->  | BZ58: =IF(#REF!="","",#REF!) -> 
BY59: =IF(#REF!="","",#REF!) ->  | BZ59: =IF(#REF!="","",#REF!) -> 
BY60: =IF(#REF!="","",#REF!) ->  | BZ60: =IF(#REF!="","",#REF!) -> 
BY61: =IF(#REF!="","",#REF!) ->  | BZ61: =IF(#REF!="","",#REF!) -> 
BY62: =IF(#REF!="","",#REF!) ->  | BZ62: =IF(#REF!="","",#REF!) -> 
BY63: =IF(#REF!="","",#REF!) ->  | BZ63: =IF(#REF!="","",#REF!) -> 
BY64: =IF(#REF!="","",#REF!) ->  | BZ64: =IF(#REF!="","",#REF!) -> 
BY65: =IF(#REF!="","",#REF!) ->  | BZ65: =IF(#REF!="","",#REF!) -> 
BY66: =IF(#REF!="","",#REF!) ->  | BZ66: =IF(#REF!="","",#REF!) -> 
BY67: =IF(#REF!="","",#REF!) ->  | BZ67: =IF(#REF!="","",#REF!) -> 
BY68: =IF(#REF!="","",#REF!) ->  | BZ68: =IF(#REF!="","",#REF!) -> 
BY69: =IF(#REF!="","",#REF!) ->  | BZ69: =IF(#REF!="","",#REF!) -> 
BY70: =IF(#REF!="","",#REF!) ->  | BZ70: =IF(#REF!="","",#REF!) -> 
BY71: =IF(#REF!="","",#REF!) ->  | BZ71: =IF(#REF!="","",#REF!) -> 
BY72: =IF(#REF!="","",#REF!) ->  | BZ72: =IF(#REF!="","",#REF!) -> 
BY73: =IF(#REF!="","",#REF!) ->  | BZ73: =IF(#REF!="","",#REF!) -> 
BY74: =IF(#REF!="","",#REF!) ->  | BZ74: =IF(#REF!="","",#REF!) -> 
BY75: =IF(#REF!="","",#REF!) ->  | BZ75: =IF(#REF!="","",#REF!) -> 
BY76: =IF(#REF!="","",#REF!) ->  | BZ76: =IF(#REF!="","",#REF!) -> 
BY77: =IF(#REF!="","",#REF!) ->  | BZ77: =IF(#REF!="","",#REF!) -> 
BY78: =IF(#REF!="","",#REF!) ->  | BZ78: =IF(#REF!="","",#REF!) -> 
BY79: =IF(#REF!="","",#REF!) ->  | BZ79: =IF(#REF!="","",#REF!) -> 
BY80: =IF(#REF!="","",#REF!) ->  | BZ80: =IF(#REF!="","",#REF!) -> 
BY81: =IF(#REF!="","",#REF!) ->  | BZ81: =IF(#REF!="","",#REF!) -> 
BY82: =IF(#REF!="","",#REF!) ->  | BZ82: =IF(#REF!="","",#REF!) -> 
BY83: =IF(#REF!="","",#REF!) ->  | BZ83: =IF(#REF!="","",#REF!) -> 
BY84: =IF(#REF!="","",#REF!) ->  | BZ84: =IF(#REF!="","",#REF!) -> 
BY85: =IF(#REF!="","",#REF!) ->  | BZ85: =IF(#REF!="","",#REF!) -> 
BY86: =IF(#REF!="","",#REF!) ->  | BZ86: =IF(#REF!="","",#REF!) -> 
BY87: =IF(#REF!="","",#REF!) ->  | BZ87: =IF(#REF!="","",#REF!) -> 
BY88: =IF(#REF!="","",#REF!) ->  | BZ88: =IF(#REF!="","",#REF!) -> 
BY89: =IF(#REF!="","",#REF!) ->  | BZ89: =IF(#REF!="","",#REF!) -> 
BY90: =IF(#REF!="","",#REF!) ->  | BZ90: =IF(#REF!="","",#REF!) -> 
BY91: =IF(#REF!="","",#REF!) ->  | BZ91: =IF(#REF!="","",#REF!) -> 
BY92: =IF(#REF!="","",#REF!) ->  | BZ92: =IF(#REF!="","",#REF!) -> 
BY93: =IF(#REF!="","",#REF!) ->  | BZ93: =IF(#REF!="","",#REF!) -> 
BY94: =IF(#REF!="","",#REF!) ->  | BZ94: =IF(#REF!="","",#REF!) -> 
BY95: =IF(#REF!="","",#REF!) ->  | BZ95: =IF(#REF!="","",#REF!) -> 
BY96: =IF(#REF!="","",#REF!) ->  | BZ96: =IF(#REF!="","",#REF!) -> 
BY97: =IF(#REF!="","",#REF!) ->  | BZ97: =IF(#REF!="","",#REF!) -> 
BY98: =IF(#REF!="","",#REF!) ->  | BZ98: =IF(#REF!="","",#REF!) -> 
BY99: =IF(#REF!="","",#REF!) ->  | BZ99: =IF(#REF!="","",#REF!) -> 
BY100: =IF(#REF!="","",#REF!) ->  | BZ100: =IF(#REF!="","",#REF!) -> 
E101: Offset | F101: 1 | G101: A | BY101: =IF(#REF!="","",#REF!) ->  | BZ101: =IF(#REF!="","",#REF!) -> 
E102: -1 | F102: 2 | G102: B | BY102: =IF(#REF!="","",#REF!) ->  | BZ102: =IF(#REF!="","",#REF!) -> 
E103: 7 | F103: 3 | G103: C | BY103: =IF(#REF!="","",#REF!) ->  | BZ103: =IF(#REF!="","",#REF!) -> 
E104: =300-7 -> 293 | F104: 4 | G104: D | I104: 0 | J104: 1 | BY104: =IF(#REF!="","",#REF!) ->  | BZ104: =IF(#REF!="","",#REF!) -> 
F105: 5 | G105: E | I105: 1 | J105: 2 | BY105: =IF(#REF!="","",#REF!) ->  | BZ105: =IF(#REF!="","",#REF!) -> 
F106: 6 | G106: F | I106: 2 | J106: 3 | BY106: =IF(#REF!="","",#REF!) ->  | BZ106: =IF(#REF!="","",#REF!) -> 
F107: 7 | G107: G | I107: 3 | J107: 4 | BY107: =IF(#REF!="","",#REF!) ->  | BZ107: =IF(#REF!="","",#REF!) -> 
F108: 8 | G108: H | I108: 4 | J108: 5 | BY108: =IF(#REF!="","",#REF!) ->  | BZ108: =IF(#REF!="","",#REF!) -> 
F109: 9 | G109: I | I109: 5 | J109: 6 | BY109: =IF(#REF!="","",#REF!) ->  | BZ109: =IF(#REF!="","",#REF!) -> 
F110: 10 | G110: J | I110: 6 | J110: 7 | BY110: =IF(#REF!="","",#REF!) ->  | BZ110: =IF(#REF!="","",#REF!) -> 
F111: =F110+1 -> 11 | G111: K | I111: 7 | J111: 8 | BY111: =IF(#REF!="","",#REF!) ->  | BZ111: =IF(#REF!="","",#REF!) -> 
A112: =IF($H$13<>"","Warning - Pressing ""Delete Entity"" button will delete all records for the corporation and can not be recovered. Be careful.","") ->  | F112: =F111+1 -> 12 | G112: L | I112: 8 | J112: 9 | BY112: =IF(#REF!="","",#REF!) ->  | BZ112: =IF(#REF!="","",#REF!) -> 
F113: 13 | G113: M | I113: 9 | J113: 10 | BY113: =IF(#REF!="","",#REF!) ->  | BZ113: =IF(#REF!="","",#REF!) -> 
F114: 14 | G114: N | I114: - | J114: 11 | BY114: =IF(#REF!="","",#REF!) ->  | BZ114: =IF(#REF!="","",#REF!) -> 
A115: =IF($H$16<>"","Warning - Pressing ""Delete Tracking"" button will delete revision tracking and can not be recovered. Be careful.","") ->  | F115: 15 | G115: O | J115: 12 | BY115: =IF(#REF!="","",#REF!) ->  | BZ115: =IF(#REF!="","",#REF!) -> 
F116: 16 | G116: P | I116: ! | J116: 13 | BY116: =IF(#REF!="","",#REF!) ->  | BZ116: =IF(#REF!="","",#REF!) -> 
F117: 17 | G117: Q | I117: # | J117: 14 | BY117: =IF(#REF!="","",#REF!) ->  | BZ117: =IF(#REF!="","",#REF!) -> 
F118: 18 | G118: R | I118: $ | J118: 15 | BY118: =IF(#REF!="","",#REF!) ->  | BZ118: =IF(#REF!="","",#REF!) -> 
F119: 19 | G119: S | I119: % | J119: 16 | BY119: =IF(#REF!="","",#REF!) ->  | BZ119: =IF(#REF!="","",#REF!) -> 
F120: 20 | G120: T | I120: & | J120: 17 | BY120: =IF(#REF!="","",#REF!) ->  | BZ120: =IF(#REF!="","",#REF!) -> 
F121: 21 | G121: U | I121: ( | J121: 18 | BY121: =IF(#REF!="","",#REF!) ->  | BZ121: =IF(#REF!="","",#REF!) -> 
F122: 22 | G122: V | I122: ) | J122: 19 | BY122: =IF(#REF!="","",#REF!) ->  | BZ122: =IF(#REF!="","",#REF!) -> 
F123: 23 | G123: W | I123: * | J123: 20 | BY123: =IF(#REF!="","",#REF!) ->  | BZ123: =IF(#REF!="","",#REF!) -> 
F124: 24 | G124: X | I124: , | J124: 21 | BY124: =IF(#REF!="","",#REF!) ->  | BZ124: =IF(#REF!="","",#REF!) -> 
F125: 25 | G125: Y | I125: . | J125: 22 | BY125: =IF(#REF!="","",#REF!) ->  | BZ125: =IF(#REF!="","",#REF!) -> 
F126: 26 | G126: Z | I126: / | J126: 23 | BY126: =IF(#REF!="","",#REF!) ->  | BZ126: =IF(#REF!="","",#REF!) -> 
I127: @ | J127: 24 | BY127: =IF(#REF!="","",#REF!) ->  | BZ127: =IF(#REF!="","",#REF!) -> 
I128: [ | J128: 25 | BY128: =IF(#REF!="","",#REF!) ->  | BZ128: =IF(#REF!="","",#REF!) -> 
I129: \ | J129: 26 | BY129: =IF(#REF!="","",#REF!) ->  | BZ129: =IF(#REF!="","",#REF!) -> 
I130: ] | J130: 27 | BY130: =IF(#REF!="","",#REF!) ->  | BZ130: =IF(#REF!="","",#REF!) -> 
I131: ^ | J131: 28 | BY131: =IF(#REF!="","",#REF!) ->  | BZ131: =IF(#REF!="","",#REF!) -> 
I132: _ | J132: 29 | BY132: =IF(#REF!="","",#REF!) ->  | BZ132: =IF(#REF!="","",#REF!) -> 
I133: { | J133: 30 | BY133: =IF(#REF!="","",#REF!) ->  | BZ133: =IF(#REF!="","",#REF!) -> 
I134: } | J134: 31 | BY134: =IF(#REF!="","",#REF!) ->  | BZ134: =IF(#REF!="","",#REF!) -> 
I135: + | J135: 32 | BY135: =IF(#REF!="","",#REF!) ->  | BZ135: =IF(#REF!="","",#REF!) -> 
I136: = | J136: 33 | BY136: =IF(#REF!="","",#REF!) ->  | BZ136: =IF(#REF!="","",#REF!) -> 
I137: A | J137: 34 | BY137: =IF(#REF!="","",#REF!) ->  | BZ137: =IF(#REF!="","",#REF!) -> 
I138: B | J138: 35 | BY138: =IF(#REF!="","",#REF!) ->  | BZ138: =IF(#REF!="","",#REF!) -> 
I139: C | J139: 36 | BY139: =IF(#REF!="","",#REF!) ->  | BZ139: =IF(#REF!="","",#REF!) -> 
I140: D | J140: 37 | BY140: =IF(#REF!="","",#REF!) ->  | BZ140: =IF(#REF!="","",#REF!) -> 
I141: E | J141: 38 | BY141: =IF(#REF!="","",#REF!) ->  | BZ141: =IF(#REF!="","",#REF!) -> 
I142: F | J142: 39 | BY142: =IF(#REF!="","",#REF!) ->  | BZ142: =IF(#REF!="","",#REF!) -> 
I143: G | J143: 40 | BY143: =IF(#REF!="","",#REF!) ->  | BZ143: =IF(#REF!="","",#REF!) -> 
I144: H | J144: 41 | BY144: =IF(#REF!="","",#REF!) ->  | BZ144: =IF(#REF!="","",#REF!) -> 
I145: I | J145: 42 | BY145: =IF(#REF!="","",#REF!) ->  | BZ145: =IF(#REF!="","",#REF!) -> 
I146: J | J146: 43 | BY146: =IF(#REF!="","",#REF!) ->  | BZ146: =IF(#REF!="","",#REF!) -> 
I147: K | J147: 44 | BY147: =IF(#REF!="","",#REF!) ->  | BZ147: =IF(#REF!="","",#REF!) -> 
I148: L | J148: 45 | BY148: =IF(#REF!="","",#REF!) ->  | BZ148: =IF(#REF!="","",#REF!) -> 
I149: M | J149: 46 | BY149: =IF(#REF!="","",#REF!) ->  | BZ149: =IF(#REF!="","",#REF!) -> 
I150: N | J150: 47 | BY150: =IF(#REF!="","",#REF!) ->  | BZ150: =IF(#REF!="","",#REF!) -> 
I151: O | J151: 48 | BY151: =IF(#REF!="","",#REF!) ->  | BZ151: =IF(#REF!="","",#REF!) -> 
I152: P | J152: 49 | BY152: =IF(#REF!="","",#REF!) ->  | BZ152: =IF(#REF!="","",#REF!) -> 
I153: Q | J153: 50 | BY153: =IF(#REF!="","",#REF!) ->  | BZ153: =IF(#REF!="","",#REF!) -> 
I154: R | J154: 51 | BY154: =IF(#REF!="","",#REF!) ->  | BZ154: =IF(#REF!="","",#REF!) -> 
I155: S | J155: 52 | BY155: =IF(#REF!="","",#REF!) ->  | BZ155: =IF(#REF!="","",#REF!) -> 
I156: T | J156: 53 | BY156: =IF(#REF!="","",#REF!) ->  | BZ156: =IF(#REF!="","",#REF!) -> 
I157: U | J157: 54 | BY157: =IF(#REF!="","",#REF!) ->  | BZ157: =IF(#REF!="","",#REF!) -> 
I158: V | J158: 55 | BY158: =IF(#REF!="","",#REF!) ->  | BZ158: =IF(#REF!="","",#REF!) -> 
I159: W | J159: 56 | BY159: =IF(#REF!="","",#REF!) ->  | BZ159: =IF(#REF!="","",#REF!) -> 
I160: X | J160: 57 | BY160: =IF(#REF!="","",#REF!) ->  | BZ160: =IF(#REF!="","",#REF!) -> 
I161: Y | J161: 58 | BY161: =IF(#REF!="","",#REF!) ->  | BZ161: =IF(#REF!="","",#REF!) -> 
I162: Z | J162: 59 | BY162: =IF(#REF!="","",#REF!) ->  | BZ162: =IF(#REF!="","",#REF!) -> 
BY163: =IF(#REF!="","",#REF!) ->  | BZ163: =IF(#REF!="","",#REF!) -> 
BY164: =IF(#REF!="","",#REF!) ->  | BZ164: =IF(#REF!="","",#REF!) -> 
BY165: =IF(#REF!="","",#REF!) ->  | BZ165: =IF(#REF!="","",#REF!) -> 
BY166: =IF(#REF!="","",#REF!) ->  | BZ166: =IF(#REF!="","",#REF!) -> 
BY167: =IF(#REF!="","",#REF!) ->  | BZ167: =IF(#REF!="","",#REF!) -> 
BY168: =IF(#REF!="","",#REF!) ->  | BZ168: =IF(#REF!="","",#REF!) -> 
BY169: =IF(#REF!="","",#REF!) ->  | BZ169: =IF(#REF!="","",#REF!) -> 
BY170: =IF(#REF!="","",#REF!) ->  | BZ170: =IF(#REF!="","",#REF!) -> 
BY171: =IF(#REF!="","",#REF!) ->  | BZ171: =IF(#REF!="","",#REF!) -> 
BY172: =IF(#REF!="","",#REF!) ->  | BZ172: =IF(#REF!="","",#REF!) -> 
BY173: =IF(#REF!="","",#REF!) ->  | BZ173: =IF(#REF!="","",#REF!) -> 
BY174: =IF(#REF!="","",#REF!) ->  | BZ174: =IF(#REF!="","",#REF!) -> 
BY175: =IF(#REF!="","",#REF!) ->  | BZ175: =IF(#REF!="","",#REF!) -> 
BY176: =IF(#REF!="","",#REF!) ->  | BZ176: =IF(#REF!="","",#REF!) -> 
BY177: =IF(#REF!="","",#REF!) ->  | BZ177: =IF(#REF!="","",#REF!) -> 
BY178: =IF(#REF!="","",#REF!) ->  | BZ178: =IF(#REF!="","",#REF!) -> 
BY179: =IF(#REF!="","",#REF!) ->  | BZ179: =IF(#REF!="","",#REF!) -> 
BY180: =IF(#REF!="","",#REF!) ->  | BZ180: =IF(#REF!="","",#REF!) -> 
BY181: =IF(#REF!="","",#REF!) ->  | BZ181: =IF(#REF!="","",#REF!) -> 
BY182: =IF(#REF!="","",#REF!) ->  | BZ182: =IF(#REF!="","",#REF!) -> 
BY183: =IF(#REF!="","",#REF!) ->  | BZ183: =IF(#REF!="","",#REF!) -> 
BY184: =IF(#REF!="","",#REF!) ->  | BZ184: =IF(#REF!="","",#REF!) -> 
BY185: =IF(#REF!="","",#REF!) ->  | BZ185: =IF(#REF!="","",#REF!) -> 
BY186: =IF(#REF!="","",#REF!) ->  | BZ186: =IF(#REF!="","",#REF!) -> 
BY187: =IF(#REF!="","",#REF!) ->  | BZ187: =IF(#REF!="","",#REF!) -> 
BY188: =IF(#REF!="","",#REF!) ->  | BZ188: =IF(#REF!="","",#REF!) -> 
BY189: =IF(#REF!="","",#REF!) ->  | BZ189: =IF(#REF!="","",#REF!) -> 
BY190: =IF(#REF!="","",#REF!) ->  | BZ190: =IF(#REF!="","",#REF!) -> 
BY191: =IF(#REF!="","",#REF!) ->  | BZ191: =IF(#REF!="","",#REF!) -> 
BY192: =IF(#REF!="","",#REF!) ->  | BZ192: =IF(#REF!="","",#REF!) -> 
BY193: =IF(#REF!="","",#REF!) ->  | BZ193: =IF(#REF!="","",#REF!) -> 
BY194: =IF(#REF!="","",#REF!) ->  | BZ194: =IF(#REF!="","",#REF!) -> 
BY195: =IF(#REF!="","",#REF!) ->  | BZ195: =IF(#REF!="","",#REF!) -> 
BY196: =IF(#REF!="","",#REF!) ->  | BZ196: =IF(#REF!="","",#REF!) -> 
BY197: =IF(#REF!="","",#REF!) ->  | BZ197: =IF(#REF!="","",#REF!) -> 
BY198: =IF(#REF!="","",#REF!) ->  | BZ198: =IF(#REF!="","",#REF!) -> 
BY199: =IF(#REF!="","",#REF!) ->  | BZ199: =IF(#REF!="","",#REF!) -> 
BY200: =IF(#REF!="","",#REF!) ->  | BZ200: =IF(#REF!="","",#REF!) -> 
... 2 more rows

Sheet Source
A1: Author_Name | B1: Author_email | C1: Source_Agency | D1: Source_Website | E1: Data_Current_To
A2: George Macauley | B2: office@macauley.ca | C2: British Columbia Energy Regulator | D2: www.bc-er.ca | E2: November 2025

Sheet Search
A1: 1 | B1: =IF(ISERROR(VLOOKUP($E$1+$A1-1,LU_Search_Main,2,0)),"",VLOOKUP($E$1+$A1-1,LU_Search_Main,2,0)) -> 49886 | C1: =IF($B1="","",VLOOKUP($E$1+$A1-1,LU_Search_Main,2)&" - "&VLOOKUP($E$1+$A1-1,LU_Search_Main,3)) -> 49886 - TOURMALINE HZ TOWN C-G002-G/094-B-16 | D1: Start Position | E1: =SUM($E$2:$E21) -> 1 | F1: =Summary!$E$2 -> First 25 Wells
A2: 2 | B2: 34329 | C2: 34329 - TOURMALINE HZ NIG CREEK WEST A- 073-D/094-H-04 | E2: =IF($F$1=$F2,1,0) -> 1 | F2: =Summary!$CE$2 -> First 25 Wells | H2: SQL code
A3: 3 | B3: 34330 | C3: 34330 - TOURMALINE HZ NIG CREEK WEST A-A073-D/094-H-04 | E3: =IF($F$1=$F3,26,0) -> 0 | F3: =Summary!$CE$3 -> Wells 26-50 | H3: SELECT WA_NUM,WELL_NAME from WELL_SEARCH_INDEX where (OPERATOR like '%Tour%' or OPER_ABRV like '%Tour%') and SPUD_MON >= 202401 and SPUD_MON <= 202511 and SURF_LAT_DEC_DEG >= 57 and SURF_LON_DEC_DEG >= -124 and SURF_LAT_DEC_DEG <= 60 and SURF_LON_DEC_DEG <= -116 order by GAS_PRODN_3_YR desc, WA_NUM desc;
A4: 4 | B4: 36126 | C4: 36126 - TOURMALINE HZ AITKEN CREEK NORTH C- 065-D/094-H-04 | E4: =IF($F$1=$F4,51,0) -> 0 | F4: =Summary!$CE$4 -> Wells 51-75
A5: 5 | B5: 34331 | C5: 34331 - TOURMALINE HZ NIG CREEK WEST A-B073-D/094-H-04 | E5: =IF($F$1=$F5,76,0) -> 0 | F5: =Summary!$CE$5 -> Wells 76-100
A6: 6 | B6: 36127 | C6: 36127 - TOURMALINE HZ AITKEN CREEK NORTH C-A065-D/094-H-04 | E6: =IF($F$1=$F6,101,0) -> 0 | F6: =Summary!$CE$6 -> Wells 101-125
A7: 7 | B7: 36128 | C7: 36128 - TOURMALINE HZ AITKEN CREEK NORTH C-B065-D/094-H-04 | E7: =IF($F$1=$F7,126,0) -> 0 | F7: =Summary!$CE$7 -> Wells 126-150
A8: 8 | B8: 49882 | C8: 49882 - TOURMALINE HZ TOWN C-C002-G/094-B-16 | E8: =IF($F$1=$F8,151,0) -> 0 | F8: =Summary!$CE$8 -> Wells 151-175
A9: 9 | B9: 36129 | C9: 36129 - TOURMALINE HZ AITKEN CREEK NORTH C-C065-D/094-H-04 | E9: =IF($F$1=$F9,176,0) -> 0 | F9: =Summary!$CE$9 -> Wells 176-181
A10: 10 | B10: 40535 | C10: 40535 - TOURMALINE HZ TOWN A-N008-A/094-B-16 | E10: =IF($F$1=$F10,201,0) -> 0 | F10: =Summary!$CE$10 -> 
A11: 11 | B11: 40533 | C11: 40533 - TOURMALINE HZ TOWN A-L008-A/094-B-16 | E11: =IF($F$1=$F11,226,0) -> 0 | F11: =Summary!$CE$11 -> 
A12: 12 | B12: 40532 | C12: 40532 - TOURMALINE HZ TOWN A-K008-A/094-B-16 | E12: =IF($F$1=$F12,251,0) -> 0 | F12: =Summary!$CE$12 -> 
A13: 13 | B13: 50903 | C13: 50903 - TOURMALINE HZ NIG CREEK C-B100-C/094-H-04 | E13: =IF($F$1=$F13,276,0) -> 0 | F13: =Summary!$CE$13 -> 
A14: 14 | B14: 49891 | C14: 49891 - TOURMALINE HZ TOWN C-L002-G/094-B-16 | E14: =IF($F$1=$F14,301,0) -> 0 | F14: =Summary!$CE$14 -> 
A15: 15 | B15: 50904 | C15: 50904 - TOURMALINE HZ NIG CREEK C-C100-C/094-H-04 | E15: =IF($F$1=$F15,326,0) -> 0 | F15: =Summary!$CE$15 -> 
A16: 16 | B16: 49884 | C16: 49884 - TOURMALINE HZ TOWN C-E002-G/094-B-16 | E16: =IF($F$1=$F16,351,0) -> 0 | F16: =Summary!$CE$16 -> 
A17: 17 | B17: 49880 | C17: 49880 - TOURMALINE HZ TOWN C-A002-G/094-B-16 | E17: =IF($F$1=$F17,376,0) -> 0 | F17: =Summary!$CE$17 -> 
A18: 18 | B18: 34328 | C18: 34328 - TOURMALINE HZ NIG CREEK WEST B- 073-D/094-H-04 | E18: =IF($F$1=$F18,401,0) -> 0 | F18: =Summary!$CE$18 -> 
A19: 19 | B19: 50994 | C19: 50994 - TOURMALINE HZ NIG CREEK D-C019-F/094-H-04 | E19: =IF($F$1=$F19,426,0) -> 0 | F19: =Summary!$CE$19 -> 
A20: 20 | B20: 50993 | C20: 50993 - TOURMALINE HZ NIG CREEK D-B019-F/094-H-04 | E20: =IF($F$1=$F20,451,0) -> 0 | F20: =Summary!$CE$20 -> 
A21: 21 | B21: 50901 | C21: 50901 - TOURMALINE HZ NIG CREEK C- 100-C/094-H-04 | E21: =IF($F$1=$F21,476,0) -> 0 | F21: =Summary!$CE$21 -> 
A22: 22 | B22: 50995 | C22: 50995 - TOURMALINE HZ NIG CREEK D-D019-F/094-H-04
A23: 23 | B23: 50992 | C23: 50992 - TOURMALINE HZ NIG CREEK D-A019-F/094-H-04
A24: 24 | B24: 42693 | C24: 42693 - TOURMALINE HZ KOBES D-AD005-H/094-B-09 | D24: Total SearchNo. | F24: POSITION
A25: 25 | B25: 39493 | C25: 39493 - TOURMALINE ET AL HZ NIG CREEK A-H094-J/094-A-13 | D25: =DCOUNTA(DB_SEARCH_WELL_NAME,"POSITION",F24:F25) -> 181 | E25: =MAX(A29:A528) -> 181 | F25: >0
F26: =IF(C27<>"",TRUE,FALSE) -> FALSE
F27: Line 1 | G27: =IF($F$26,"More than 500 wells were returned. Only the last 500 are displayed. ","") -> 
A28: POSITION | B28: WA_NUM | C28: WELL_NAME | F28: Line 2 | G28: =IF($F$26,"Please refine your query if appropriate.","") -> 
A29: =IF($B29="","",1) -> 1 | B29: 49886 | C29: TOURMALINE HZ TOWN C-G002-G/094-B-16
A30: =IF($B30="","",$A29+1) -> 2 | B30: 34329 | C30: TOURMALINE HZ NIG CREEK WEST A- 073-D/094-H-04
A31: =IF($B31="","",$A30+1) -> 3 | B31: 34330 | C31: TOURMALINE HZ NIG CREEK WEST A-A073-D/094-H-04
A32: 4 | B32: 36126 | C32: TOURMALINE HZ AITKEN CREEK NORTH C- 065-D/094-H-04
A33: 5 | B33: 34331 | C33: TOURMALINE HZ NIG CREEK WEST A-B073-D/094-H-04
A34: 6 | B34: 36127 | C34: TOURMALINE HZ AITKEN CREEK NORTH C-A065-D/094-H-04
A35: 7 | B35: 36128 | C35: TOURMALINE HZ AITKEN CREEK NORTH C-B065-D/094-H-04
A36: 8 | B36: 49882 | C36: TOURMALINE HZ TOWN C-C002-G/094-B-16
A37: 9 | B37: 36129 | C37: TOURMALINE HZ AITKEN CREEK NORTH C-C065-D/094-H-04
A38: 10 | B38: 40535 | C38: TOURMALINE HZ TOWN A-N008-A/094-B-16
A39: 11 | B39: 40533 | C39: TOURMALINE HZ TOWN A-L008-A/094-B-16
A40: 12 | B40: 40532 | C40: TOURMALINE HZ TOWN A-K008-A/094-B-16
A41: 13 | B41: 50903 | C41: TOURMALINE HZ NIG CREEK C-B100-C/094-H-04
A42: 14 | B42: 49891 | C42: TOURMALINE HZ TOWN C-L002-G/094-B-16
A43: 15 | B43: 50904 | C43: TOURMALINE HZ NIG CREEK C-C100-C/094-H-04
A44: 16 | B44: 49884 | C44: TOURMALINE HZ TOWN C-E002-G/094-B-16
A45: 17 | B45: 49880 | C45: TOURMALINE HZ TOWN C-A002-G/094-B-16
A46: 18 | B46: 34328 | C46: TOURMALINE HZ NIG CREEK WEST B- 073-D/094-H-04
A47: 19 | B47: 50994 | C47: TOURMALINE HZ NIG CREEK D-C019-F/094-H-04
A48: 20 | B48: 50993 | C48: TOURMALINE HZ NIG CREEK D-B019-F/094-H-04
A49: 21 | B49: 50901 | C49: TOURMALINE HZ NIG CREEK C- 100-C/094-H-04
A50: 22 | B50: 50995 | C50: TOURMALINE HZ NIG CREEK D-D019-F/094-H-04
A51: 23 | B51: 50992 | C51: TOURMALINE HZ NIG CREEK D-A019-F/094-H-04
A52: 24 | B52: 42693 | C52: TOURMALINE HZ KOBES D-AD005-H/094-B-09
A53: 25 | B53: 39493 | C53: TOURMALINE ET AL HZ NIG CREEK A-H094-J/094-A-13
A54: 26 | B54: 47107 | C54: TOURMALINE HZ NIG CREEK A-K094-J/094-A-13
A55: 27 | B55: 47106 | C55: TOURMALINE HZ NIG CREEK A-J094-J/094-A-13
A56: 28 | B56: 50902 | C56: TOURMALINE HZ NIG CREEK C-A100-C/094-H-04
A57: 29 | B57: 49883 | C57: TOURMALINE HZ TOWN C-D002-G/094-B-16
A58: 30 | B58: 39494 | C58: TOURMALINE ET AL HZ NIG CREEK A-I094-J/094-A-13
A59: 31 | B59: 40534 | C59: TOURMALINE HZ TOWN A-M008-A/094-B-16
A60: 32 | B60: 49893 | C60: TOURMALINE HZ TOWN C-N002-G/094-B-16
A61: 33 | B61: 39491 | C61: TOURMALINE ET AL HZ NIG CREEK A-F094-J/094-A-13
A62: 34 | B62: 42691 | C62: TOURMALINE HZ KOBES D-AB005-H/094-B-09
A63: 35 | B63: 49888 | C63: TOURMALINE HZ TOWN C-I002-G/094-B-16
A64: 36 | B64: 42682 | C64: TOURMALINE HZ KOBES D-S005-H/094-B-09
A65: 37 | B65: 47446 | C65: TOURMALINE HZ SUNRISE I01-12-080-18
A66: 38 | B66: 39492 | C66: TOURMALINE ET AL HZ NIG CREEK A-G094-J/094-A-13
A67: 39 | B67: 50659 | C67: TOURMALINE HZ SUNDOWN I04-23-077-17
A68: 40 | B68: 42690 | C68: TOURMALINE HZ KOBES D-AA005-H/094-B-09
A69: 41 | B69: 39957 | C69: TOURMALINE HZ BEG D-H066-I/094-B-16
A70: 42 | B70: 47444 | C70: TOURMALINE HZ SUNRISE G01-12-080-18
A71: 43 | B71: 35813 | C71: TOURMALINE ET AL HZ LAPRISE C-H054-H/094-G-08
A72: 44 | B72: 39757 | C72: TOURMALINE HZ TOWN B-K054-I/094-B-09
A73: 45 | B73: 40530 | C73: TOURMALINE HZ TOWN A-I008-A/094-B-16
A74: 46 | B74: 41538 | C74: TOURMALINE HZ TOWN C-L031-H/094-B-09
A75: 47 | B75: 42688 | C75: TOURMALINE HZ KOBES D-Y005-H/094-B-09
A76: 48 | B76: 50660 | C76: TOURMALINE HZ SUNDOWN J04-23-077-17
A77: 49 | B77: 42778 | C77: TOURMALINE SAGUARO HZ LAPRISE CREEK C-J054-H/094-G-08
A78: 50 | B78: 39960 | C78: TOURMALINE HZ BEG D-K066-I/094-B-16
A79: 51 | B79: 39958 | C79: TOURMALINE HZ BEG D-I066-I/094-B-16
A80: 52 | B80: 39951 | C80: TOURMALINE HZ BEG D-E066-I/094-B-16
A81: 53 | B81: 39774 | C81: TOURMALINE ET AL HZ BIRCH C-A014-I/094-A-13
A82: 54 | B82: 29221 | C82: TOURMALINE HZ SUNDOWN E04-23-077-17
A83: 55 | B83: 40531 | C83: TOURMALINE HZ TOWN A-J008-A/094-B-16
A84: 56 | B84: 49887 | C84: TOURMALINE HZ TOWN C-H002-G/094-B-16
A85: 57 | B85: 47445 | C85: TOURMALINE HZ SUNRISE H01-12-080-18
A86: 58 | B86: 42685 | C86: TOURMALINE HZ KOBES D-V005-H/094-B-09
A87: 59 | B87: 39776 | C87: TOURMALINE ET AL HZ BIRCH C-C014-I/094-A-13
A88: 60 | B88: 40028 | C88: TOURMALINE HZ BLUEBERRY WEST B-K052-I/094-B-09
A89: 61 | B89: 39950 | C89: TOURMALINE HZ BEG D-D066-I/094-B-16
A90: 62 | B90: 39751 | C90: TOURMALINE HZ TOWN B-I054-I/094-B-09
A91: 63 | B91: 46118 | C91: TOURMALINE HZ LAPRISE CREEK WEST A-F081-G/094-G-08
A92: 64 | B92: 42683 | C92: TOURMALINE HZ KOBES D-T005-H/094-B-09
A93: 65 | B93: 49885 | C93: TOURMALINE HZ TOWN C-F002-G/094-B-16
A94: 66 | B94: 42692 | C94: TOURMALINE HZ KOBES D-AC005-H/094-B-09
A95: =IF($B95="","",$A94+1) -> 67 | B95: 39747 | C95: TOURMALINE HZ TOWN B-E054-I/094-B-09
A96: 68 | B96: 47443 | C96: TOURMALINE HZ SUNRISE F01-12-080-18
A97: 69 | B97: 39956 | C97: TOURMALINE HZ BEG D-G066-I/094-B-16
A98: 70 | B98: 39949 | C98: TOURMALINE HZ BEG D-C066-I/094-B-16
A99: 71 | B99: 39749 | C99: TOURMALINE HZ TOWN B-G054-I/094-B-09
A100: 72 | B100: 39959 | C100: TOURMALINE HZ BEG D-J066-I/094-B-16
A101: 73 | B101: 42780 | C101: TOURMALINE SAGUARO HZ LAPRISE CREEK C-L054-H/094-G-08
A102: 74 | B102: 35812 | C102: TOURMALINE ET AL HZ LAPRISE C-I054-H/094-G-08
A103: 75 | B103: 42781 | C103: TOURMALINE SAGUARO HZ LAPRISE CREEK C-M054-H/094-G-08
A104: 76 | B104: 42779 | C104: TOURMALINE SAGUARO HZ LAPRISE CREEK C-K054-H/094-G-08
A105: 77 | B105: 42686 | C105: TOURMALINE HZ KOBES D-W005-H/094-B-09
A106: 78 | B106: 46117 | C106: TOURMALINE HZ LAPRISE CREEK WEST A-E081-G/094-G-08
A107: 79 | B107: 46116 | C107: TOURMALINE HZ LAPRISE CREEK WEST A-D081-G/094-G-08
A108: 80 | B108: 49879 | C108: TOURMALINE HZ TOWN C- 002-G/094-B-16
A109: 81 | B109: 42783 | C109: TOURMALINE SAGUARO HZ LAPRISE CREEK C-O054-H/094-G-08
A110: 82 | B110: 29220 | C110: TOURMALINE HZ SUNDOWN D04-23-077-17
A111: 83 | B111: 39952 | C111: TOURMALINE HZ BEG D-F066-I/094-B-16
A112: 84 | B112: 41536 | C112: TOURMALINE HZ TOWN C-J031-H/094-B-09
A113: 85 | B113: 40528 | C113: TOURMALINE HZ TOWN A-G008-A/094-B-16
A114: 86 | B114: 41543 | C114: TOURMALINE HZ TOWN C-Q031-H/094-B-09
A115: 87 | B115: 40029 | C115: TOURMALINE HZ BLUEBERRY WEST B-J052-I/094-B-09
A116: 88 | B116: 42689 | C116: TOURMALINE HZ KOBES D-Z005-H/094-B-09
A117: 89 | B117: 49890 | C117: TOURMALINE HZ TOWN C-K002-G/094-B-16
A118: 90 | B118: 48001 | C118: TOURMALINE HZ NIG CREEK D-I024-F/094-H-04
A119: 91 | B119: 41539 | C119: TOURMALINE HZ TOWN C-M031-H/094-B-09
A120: 92 | B120: 39778 | C120: TOURMALINE ET AL HZ BIRCH C-E014-I/094-A-13
A121: 93 | B121: 47999 | C121: TOURMALINE HZ NIG CREEK D-G024-F/094-H-04
A122: 94 | B122: 40204 | C122: TOURMALINE HZ DOE I04-04-080-15
A123: 95 | B123: 48000 | C123: TOURMALINE HZ NIG CREEK D-H024-F/094-H-04
A124: 96 | B124: 46470 | C124: TOURMALINE HZ BLUEBERRY WEST B-K051-I/094-B-09
A125: 97 | B125: 41485 | C125: TOURMALINE HZ NIG CREEK B-J009-G/094-H-04
A126: 98 | B126: 39779 | C126: TOURMALINE ET AL HZ BIRCH C-F014-I/094-A-13
A127: 99 | B127: 40200 | C127: TOURMALINE HZ DOE E04-04-080-15
A128: 100 | B128: 40202 | C128: TOURMALINE HZ DOE G04-04-080-15
A129: 101 | B129: 41541 | C129: TOURMALINE HZ TOWN C-O031-H/094-B-09
A130: 102 | B130: 40197 | C130: TOURMALINE HZ DOE B04-04-080-15
A131: 103 | B131: 40203 | C131: TOURMALINE HZ DOE H04-04-080-15
A132: 104 | B132: 40198 | C132: TOURMALINE HZ DOE C04-04-080-15
A133: 105 | B133: 47996 | C133: TOURMALINE HZ NIG CREEK D-D024-F/094-H-04
A134: 106 | B134: 47998 | C134: TOURMALINE HZ NIG CREEK D-F024-F/094-H-04
A135: 107 | B135: 41542 | C135: TOURMALINE HZ TOWN C-P031-H/094-B-09
A136: 108 | B136: 41486 | C136: TOURMALINE HZ NIG CREEK B-K009-G/094-H-04
A137: 109 | B137: 46474 | C137: TOURMALINE HZ BLUEBERRY WEST B-O051-I/094-B-09
A138: 110 | B138: 42782 | C138: TOURMALINE SAGUARO HZ LAPRISE CREEK C-N054-H/094-G-08
A139: 111 | B139: 39781 | C139: TOURMALINE ET AL HZ BIRCH C-H014-I/094-A-13
A140: 112 | B140: 40195 | C140: TOURMALINE HZ DOE 04-04-080-15
A141: 113 | B141: 49889 | C141: TOURMALINE HZ TOWN C-J002-G/094-B-16
A142: 114 | B142: 40540 | C142: TOURMALINE HZ TOWN A-S008-A/094-B-16
A143: 115 | B143: 39746 | C143: TOURMALINE HZ TOWN B-D054-I/094-B-09
A144: 116 | B144: 41540 | C144: TOURMALINE HZ TOWN C-N031-H/094-B-09
A145: 117 | B145: 40027 | C145: TOURMALINE HZ BLUEBERRY WEST B-L052-I/094-B-09
A146: 118 | B146: 40201 | C146: TOURMALINE HZ DOE F04-04-080-15
A147: 119 | B147: 46115 | C147: TOURMALINE HZ LAPRISE CREEK WEST A-C081-G/094-G-08
A148: 120 | B148: 40538 | C148: TOURMALINE HZ TOWN A-Q008-A/094-B-16
A149: 121 | B149: 40199 | C149: TOURMALINE HZ DOE D04-04-080-15
A150: 122 | B150: 40529 | C150: TOURMALINE HZ TOWN A-H008-A/094-B-16
A151: 123 | B151: 47994 | C151: TOURMALINE HZ NIG CREEK D-B024-F/094-H-04
A152: 124 | B152: 39748 | C152: TOURMALINE HZ TOWN B-F054-I/094-B-09
A153: 125 | B153: 46114 | C153: TOURMALINE HZ LAPRISE CREEK WEST A-B081-G/094-G-08
A154: 126 | B154: 40536 | C154: TOURMALINE HZ TOWN A-O008-A/094-B-16
A155: 127 | B155: 40542 | C155: TOURMALINE HZ TOWN A-U008-A/094-B-16
A156: 128 | B156: 49892 | C156: TOURMALINE HZ TOWN C-M002-G/094-B-16
A157: 129 | B157: 48451 | C157: TOURMALINE HZ NIG CREEK B-M009-G/094-H-04
A158: 130 | B158: 48450 | C158: TOURMALINE HZ NIG CREEK B-L009-G/094-H-04
A159: =IF($B159="","",$A158+1) -> 131 | B159: 39777 | C159: TOURMALINE ET AL HZ BIRCH C-D014-I/094-A-13
A160: 132 | B160: 47993 | C160: TOURMALINE HZ NIG CREEK D-A024-F/094-H-04
A161: 133 | B161: 39780 | C161: TOURMALINE ET AL HZ BIRCH C-G014-I/094-A-13
A162: 134 | B162: 40196 | C162: TOURMALINE HZ DOE A04-04-080-15
A163: 135 | B163: 39752 | C163: TOURMALINE HZ TOWN B-J054-I/094-B-09
A164: 136 | B164: 48452 | C164: TOURMALINE HZ NIG CREEK B-N009-G/094-H-04
A165: 137 | B165: 47995 | C165: TOURMALINE HZ NIG CREEK D-C024-F/094-H-04
A166: 138 | B166: 42687 | C166: TOURMALINE HZ KOBES D-X005-H/094-B-09
A167: 139 | B167: 42684 | C167: TOURMALINE HZ KOBES D-U005-H/094-B-09
A168: 140 | B168: 39750 | C168: TOURMALINE HZ TOWN B-H054-I/094-B-09
A169: 141 | B169: 40539 | C169: TOURMALINE HZ TOWN A-R008-A/094-B-16
A170: 142 | B170: 39775 | C170: TOURMALINE ET AL HZ BIRCH C-B014-I/094-A-13
A171: 143 | B171: 37549 | C171: TOURMALINE HZ MONIAS 09-18-082-21
A172: 144 | B172: 40537 | C172: TOURMALINE HZ TOWN A-P008-A/094-B-16
A173: 145 | B173: 46471 | C173: TOURMALINE HZ BLUEBERRY WEST B-L051-I/094-B-09
A174: 146 | B174: 46475 | C174: TOURMALINE HZ BLUEBERRY WEST B-P051-I/094-B-09
A175: 147 | B175: 40541 | C175: TOURMALINE HZ TOWN A-T008-A/094-B-16
A176: 148 | B176: 47997 | C176: TOURMALINE HZ NIG CREEK D-E024-F/094-H-04
A177: 149 | B177: 46473 | C177: TOURMALINE HZ BLUEBERRY WEST B-N051-I/094-B-09
A178: 150 | B178: 50561 | C178: TOURMALINE HZ LAPRISE CREEK A-G039-E/094-H-05
A179: 151 | B179: 37551 | C179: TOURMALINE HZ MONIAS B09-18-082-21
A180: 152 | B180: 50558 | C180: TOURMALINE HZ LAPRISE CREEK A-D039-E/094-H-05
A181: 153 | B181: 50560 | C181: TOURMALINE HZ LAPRISE CREEK A-F039-E/094-H-05
A182: 154 | B182: 50559 | C182: TOURMALINE HZ LAPRISE CREEK A-E039-E/094-H-05
A183: 155 | B183: 50557 | C183: TOURMALINE HZ LAPRISE CREEK A-C039-E/094-H-05
A184: 156 | B184: 46469 | C184: TOURMALINE HZ BLUEBERRY WEST B-J051-I/094-B-09
A185: 157 | B185: 37550 | C185: TOURMALINE HZ MONIAS A09-18-082-21
A186: 158 | B186: 50555 | C186: TOURMALINE HZ LAPRISE CREEK A-A039-E/094-H-05
A187: 159 | B187: 41537 | C187: TOURMALINE HZ TOWN C-K031-H/094-B-09
A188: 160 | B188: 50554 | C188: TOURMALINE HZ LAPRISE CREEK A- 039-E/094-H-05
A189: 161 | B189: 54334 | C189: TOURMALINE TOURMALINE HZ AITKEN CREEK A-C068-D/094-H-04
A190: 162 | B190: 50556 | C190: TOURMALINE HZ LAPRISE CREEK A-B039-E/094-H-05
A191: 163 | B191: 54335 | C191: TOURMALINE TOURMALINE HZ AITKEN CREEK A-D068-D/094-H-04
A192: 164 | B192: 54333 | C192: TOURMALINE TOURMALINE HZ AITKEN CREEK A-B068-D/094-H-04
A193: 165 | B193: 54336 | C193: TOURMALINE TOURMALINE HZ AITKEN CREEK A-E068-D/094-H-04
A194: 166 | B194: 39230 | C194: TOURMALINE HZ TOWN C-G086-I/094-B-09
A195: 167 | B195: 54332 | C195: TOURMALINE TOURMALINE HZ AITKEN CREEK A-A068-D/094-H-04
A196: 168 | B196: 39228 | C196: TOURMALINE HZ TOWN C-E086-I/094-B-09
A197: 169 | B197: 39232 | C197: TOURMALINE HZ TOWN C-I086-I/094-B-09
A198: 170 | B198: 54331 | C198: TOURMALINE TOURMALINE HZ AITKEN CREEK A- 068-D/094-H-04
A199: 171 | B199: 39234 | C199: TOURMALINE HZ TOWN C-K086-I/094-B-09
A200: 172 | B200: 49130 | C200: TOURMALINE HZ SEPTIMUS B05-27-081-18
... 15 more rows
